Workbook

Sheet Instruções
A1: http://authenticator.sapphirebusinesstech.com:8080/access/v1/validate
A2: 123456789 | F2: Any use for this file other than sample using and technical analysis without authorization is stricly prohibited and protected by copyright
A3: contact@sapphirebusinesstech.com | F3: Qualquer uso desse arquivo sem autorização outro que uso de exemplo e análise técnica é extritamente proibida e protegida por direitos autorais.
F4: Cualquier uso de este archivo sin autorización que no sea para fines de ejemplo o análisis técnico está estrictamente prohibido y está protegido por derechos de autor.
A5: 200
A7: =IF(A12="",0,TODAY()-A12) -> 0
C10: INSTRUÇÕES DE USO
C11: Solução de Gestão de Operações Comerciais
C12: Instruções | D12: Dashboard | E12: Vendedores | F12: Clientes | G12: Produtos | H12: Pipeline | I12: Vendas | J12: Comissões | K12: Forecast | L12: Metas | M12: Agenda
C14: 1. OBJETIVO DA PLANILHA
D15: Controlar todo o ciclo comercial — da oportunidade ao pagamento da comissão — em uma única ferramenta.
D16: Substitui controles paralelos em Word, e-mail e planilhas soltas, oferecendo indicadores gerenciais e previsão de faturamento.
D17: Nenhuma macro ou VBA é utilizada. Todo o cálculo é feito por fórmulas nativas, compatíveis com Excel 2019 ou superior.
C19: 2. ESTRUTURA DAS ABAS
C20: Instruções | D20: Esta aba. Manual de uso, fluxo de preenchimento e glossário dos indicadores.
C21: Dashboard | D21: Painel executivo 100% automático: 12 indicadores, destaques, funil e 8 gráficos gerenciais.
C22: Vendedores | D22: Cadastro da equipe comercial: código, nome, equipe, comissão padrão, meta mensal e status.
C23: Clientes | D23: Cadastro da base de clientes: dados de contato, cidade/estado, segmento, origem e status.
C24: Produtos | D24: Catálogo de produtos, serviços, planos, assinaturas e consultorias, com preço base e comissão.
C25: Pipeline | D25: Tela operacional principal. Todas as oportunidades em andamento, por estágio e probabilidade.
C26: Vendas | D26: Registro das vendas fechadas. Comissão calculada automaticamente a partir do produto vendido.
C27: Comissões | D27: Espelho das vendas com status de pagamento e totais de comissão paga e pendente.
C28: Forecast | D28: Previsão de receita a partir do pipeline aberto, com cenários otimista e conservador.
C29: Metas | D29: Metas por vendedor comparadas ao realizado, com percentual atingido e situação.
C30: Agenda | D30: Agenda de atividades comerciais: ligações, visitas, follow-ups, reuniões e renovações.
C31: Base de Cálculos | D31: Aba auxiliar. Concentra listas de validação e todas as agregações. Não editar manualmente.
C33: 3. ORDEM CORRETA DE PREENCHIMENTO
C34: 1º — Vendedores | D34: Cadastre a equipe. A comissão padrão e a meta mensal alimentam as abas Metas e Comissões.
C35: 2º — Clientes | D35: Cadastre a base. Os nomes das empresas são usados nas listas do Pipeline, Vendas e Agenda.
C36: 3º — Produtos | D36: Cadastre o catálogo. A comissão específica do produto é o que define a comissão da venda.
C37: 4º — Pipeline | D37: Lance as oportunidades. Este é o dia a dia da operação — atualize semanalmente.
C38: 5º — Vendas | D38: Registre as oportunidades ganhas. A comissão é calculada sozinha.
C39: 6º — Metas | D39: Defina as metas do período. O realizado vem automaticamente das Vendas.
C40: 7º — Agenda | D40: Programe as atividades de relacionamento e follow-up.
C41: Automático | D41: Dashboard, Comissões e Forecast não são preenchidos: eles se atualizam sozinhos.
C43: 4. FLUXO DE UTILIZAÇÃO
C44: Diário | D44: Atualizar a coluna Última Atualização do Pipeline e registrar as atividades da Agenda.
C45: Semanal | D45: Revisar oportunidades paradas (destacadas em vermelho no Pipeline) e mover os estágios.
C46: No fechamento | D46: Marcar o estágio como Fechado Ganho no Pipeline e lançar a linha correspondente em Vendas.
C47: Mensal | D47: Conferir o Dashboard, validar o Forecast e liquidar as comissões marcando Pago = Sim em Vendas.
C49: 5. SIGNIFICADO DOS INDICADORES
C50: Total Vendido | D50: Soma do Valor Líquido de todas as vendas registradas (já descontados os descontos concedidos).
C51: Em Negociação | D51: Valor bruto das oportunidades do Pipeline com status Em aberto. É o tamanho do funil hoje.
C52: Receita Ponderada | D52: Soma de Valor × Probabilidade das oportunidades abertas. É a previsão realista de receita.
C53: Ticket Médio | D53: Valor Líquido médio por venda. Serve para dimensionar quantas vendas faltam para a meta.
C54: Taxa de Conversão | D54: Ganhas ÷ (Ganhas + Perdidas). Mede a eficiência do time no fechamento.
C55: Valor Ganho / Perdido | D55: Valor total das oportunidades fechadas como ganhas e como perdidas.
C56: Comissão Total | D56: Soma das comissões geradas por todas as vendas do período.
C57: Comissão Paga | D57: Comissões de vendas marcadas com Pago = Sim.
C58: Comissão Pendente | D58: Comissões de vendas com Pago = Não. É o passivo em aberto com a equipe.
C59: Dias até Fechamento | D59: Tempo médio, em dias, entre a entrada da oportunidade e o seu fechamento como ganha.
C60: Vendedor Destaque | D60: Vendedor com maior receita líquida no período.
C61: Produto Mais Vendido | D61: Produto com maior receita acumulada no período.
C62: Pipeline Parado | D62: Quantidade de oportunidades abertas sem atualização há mais de 15 dias. Exige ação imediata.
C63: Funil Comercial | D63: Quantidade e valor das oportunidades em cada estágio, do Lead ao fechamento.
C65: 6. COMO ADICIONAR NOVOS REGISTROS
C66: Onde escrever | D66: Todas as tabelas começam na célula C7 (cabeçalho) e os dados a partir da linha 8.
C67: Nova linha | D67: Escreva na primeira linha vazia abaixo do último registro. Não insira linhas no meio da tabela.
C68: Listas suspensas | D68: Campos como Estágio, Origem, Segmento e Prioridade têm lista suspensa. Clique na seta e escolha.
C69: Colunas calculadas | D69: Não digite nas colunas de fundo cinza ou texto preto (ex.: Valor Ponderado, Comissão). Elas se calculam.
C70: Limite atual | D70: As fórmulas cobrem até a linha 37 no Pipeline/Forecast e até a linha 32 em Vendas/Comissões.
C71: Para ampliar | D71: Selecione a última linha com fórmula e arraste a alça de preenchimento para baixo.
C73: 7. CÓDIGO DE CORES E FORMATAÇÃO CONDICIONAL
C74: Texto azul | D74: Campo de digitação. É onde você escreve — valores, descontos, metas, preços.
C75: Texto preto | D75: Fórmula de cálculo. Não altere.
C76: Texto verde | D76: Fórmula que busca dados em outra aba. Não altere.
C77: Fundo vermelho | D77: Pipeline sem atualização há mais de 15 dias, ou meta abaixo de 70%.
C78: Fundo amarelo | D78: Pipeline sem atualização entre 8 e 15 dias. Atenção.
C79: Fundo verde | D79: Pipeline atualizado (até 7 dias), ou meta atingida.
C80: Fundo laranja | D80: Comissão pendente de pagamento.
C81: Fundo azul claro | D81: Venda acima do ticket médio.
C83: 8. DÚVIDAS FREQUENTES
C84: A comissão está zerada | D84: Verifique se o nome do produto na aba Vendas é idêntico ao cadastrado na aba Produtos.
C85: O Dashboard não mudou | D85: Pressione F9 para recalcular. Se persistir, confira se o registro foi lançado abaixo da linha 8.
C86: Preciso apagar uma venda | D86: Apague apenas o conteúdo das colunas azuis. Não exclua a linha inteira, para não quebrar as fórmulas.
C87: Novo vendedor não aparece | D87: O Dashboard e as Metas cobrem 7 vendedores. Amplie arrastando as fórmulas na Base de Cálculos.
C88: Como mudar as listas | D88: Edite as listas na aba Base de Cálculos (linhas 8 a 20). Elas alimentam todas as validações.
C89: Quero mudar a comissão | D89: Altere na aba Produtos (comissão por produto) ou Vendedores (comissão padrão do vendedor).
C92: 9. BOAS PRÁTICAS
C93: Atualize o Pipeline | D93: Uma oportunidade sem atualização há 15 dias é, na prática, uma oportunidade perdida.
C94: Não duplique nomes | D94: Use sempre as listas suspensas. Nomes digitados manualmente quebram os totais por vendedor e produto.
C95: Não edite a Base de Cálculos | D95: Toda a inteligência da planilha está lá. Alterações manuais quebram o Dashboard.
C96: Feche o mês | D96: Antes de virar o mês, confira Dashboard, liquide comissões e arquive as oportunidades canceladas.
C97: Faça backup | D97: Salve uma cópia mensal do arquivo antes de grandes alterações.
D99: Planilha desenvolvida sem uso de VBA. Compatível com Excel 2019, 2021, 365 e Excel Online.

Sheet Dashboard (hidden)
C2: DASHBOARD EXECUTIVO
C3: Solução de Gestão de Operações Comerciais
C4: Instruções | D4: Dashboard | E4: Vendedores | F4: Clientes | G4: Produtos | H4: Pipeline | I4: Vendas | J4: Comissões | K4: Forecast | L4: Metas | M4: Agenda
C6: INDICADORES PRINCIPAIS
C8: Total Vendido | F8: Em Negociação | I8: Receita Ponderada | L8: Ticket Médio
C9: ='Base de Cálculos'!$C$69 -> R$ 520,761 | F9: ='Base de Cálculos'!$C$70 -> R$ 578,640 | I9: ='Base de Cálculos'!$C$72 -> R$ 214,528 | L9: ='Base de Cálculos'!$C$73 -> R$ 20,830
C12: Taxa de Conversão | F12: Qtd. Oportunidades | I12: Valor Ganho | L12: Valor Perdido
C13: ='Base de Cálculos'!$C$77 -> 72.7% | F13: ='Base de Cálculos'!$C$74 -> 30 | I13: ='Base de Cálculos'!$C$78 -> R$ 258,880 | L13: ='Base de Cálculos'!$C$79 -> R$ 113,040
C16: Comissão Total | F16: Comissão Paga | I16: Comissão Pendente | L16: Dias até Fechamento
C17: ='Base de Cálculos'!$C$80 -> R$ 30,792 | F17: ='Base de Cálculos'!$C$81 -> R$ 24,373 | I17: ='Base de Cálculos'!$C$82 -> R$ 6,419 | L17: ='Base de Cálculos'!$C$83 -> 43 dias
C19: DESTAQUES E FUNIL COMERCIAL
C21: Indicador | F21: Resultado | I21: Valor / Total | L21: Estágio | N21: Qtd. | O21: Valor
C22: Vendedor Destaque | F22: ='Base de Cálculos'!$C$84 -> Camila Souza | I22: ='Base de Cálculos'!$C$85 -> R$ 111,355 | L22: ='Base de Cálculos'!$C$61 -> Lead | N22: ='Base de Cálculos'!$D$61 -> 4 | O22: ='Base de Cálculos'!$E$61 -> R$ 132,480
C23: Produto Mais Vendido | F23: ='Base de Cálculos'!$C$86 -> Licença ERP Corporate | I23: ='Base de Cálculos'!$C$87 -> R$ 130,440 | L23: ='Base de Cálculos'!$C$62 -> Contato | N23: ='Base de Cálculos'!$D$62 -> 4 | O23: ='Base de Cálculos'!$E$62 -> R$ 126,480
C24: Clientes Ativos | F24: ='Base de Cálculos'!$C$88 -> 11 | I24: ='Base de Cálculos'!$C$89 -> 12 | L24: ='Base de Cálculos'!$C$63 -> Diagnóstico | N24: ='Base de Cálculos'!$D$63 -> 3 | O24: ='Base de Cálculos'!$E$63 -> R$ 89,360
C25: Pipeline Parado (>15d) | F25: ='Base de Cálculos'!$C$90 -> 18 | L25: ='Base de Cálculos'!$C$64 -> Proposta | N25: ='Base de Cálculos'!$D$64 -> 4 | O25: ='Base de Cálculos'!$E$64 -> R$ 140,160
L26: ='Base de Cálculos'!$C$65 -> Negociação | N26: ='Base de Cálculos'!$D$65 -> 3 | O26: ='Base de Cálculos'!$E$65 -> R$ 90,160
L27: ='Base de Cálculos'!$C$66 -> Fechado Ganho | N27: ='Base de Cálculos'!$D$66 -> 8 | O27: ='Base de Cálculos'!$E$66 -> R$ 258,880
L28: ='Base de Cálculos'!$C$67 -> Fechado Perdido | N28: ='Base de Cálculos'!$D$67 -> 3 | O28: ='Base de Cálculos'!$E$67 -> R$ 113,040
L29: ='Base de Cálculos'!$C$68 -> Cancelado | N29: ='Base de Cálculos'!$D$68 -> 1 | O29: ='Base de Cálculos'!$E$68 -> R$ 30,800
C31: GRÁFICOS GERENCIAIS
C32: Todos os gráficos são atualizados automaticamente a partir das abas operacionais.

Sheet Vendedores (hidden)
C2: CADASTRO DE VENDEDORES
C3: Solução de Gestão de Operações Comerciais
C4: Instruções | D4: Dashboard | E4: Vendedores | F4: Clientes | G4: Produtos | H4: Pipeline | I4: Vendas | J4: Comissões | K4: Forecast | L4: Metas | M4: Agenda
C6: Preencha os campos em azul. Código, Nome e Comissão Padrão são obrigatórios.
C7: Código | D7: Nome | E7: Equipe | F7: Comissão Padrão | G7: Meta Mensal | H7: Ativo
C8: V001 | D8: Ana Ribeiro | E8: Equipe A | F8: 5.0% | G8: R$ 80,000 | H8: Ativo
C9: V002 | D9: Bruno Carvalho | E9: Equipe A | F9: 4.5% | G9: R$ 70,000 | H9: Ativo
C10: V003 | D10: Camila Souza | E10: Equipe B | F10: 6.0% | G10: R$ 95,000 | H10: Ativo
C11: V004 | D11: Diego Martins | E11: Equipe B | F11: 4.0% | G11: R$ 60,000 | H11: Ativo
C12: V005 | D12: Elisa Nogueira | E12: Inside Sales | F12: 3.5% | G12: R$ 45,000 | H12: Ativo
C13: V006 | D13: Fábio Lima | E13: Key Accounts | F13: 7.0% | G13: R$ 120,000 | H13: Ativo
C14: V007 | D14: Gabriela Pinto | E14: Equipe C | F14: 5.0% | G14: R$ 75,000 | H14: Ativo
C15: V008 | D15: Henrique Alves | E15: Inside Sales | F15: 3.5% | G15: R$ 40,000 | H15: Inativo

Sheet Clientes (hidden)
C2: CADASTRO DE CLIENTES
C3: Solução de Gestão de Operações Comerciais
C4: Instruções | D4: Dashboard | E4: Vendedores | F4: Clientes | G4: Produtos | H4: Pipeline | I4: Vendas | J4: Comissões | K4: Forecast | L4: Metas | M4: Agenda
C6: Preencha os campos em azul. Use as listas suspensas em Segmento, Origem e Ativo.
C7: Código | D7: Empresa | E7: Contato | F7: Telefone | G7: Email | H7: Cidade | I7: Estado | J7: Segmento | K7: Origem | L7: Ativo
C8: C001 | D8: Alfa Indústria Ltda | E8: Marcos Reis | F8: (11) 3255-1010 | G8: marcos@alfaind.com.br | H8: São Paulo | I8: SP | J8: Indústria | K8: Indicação | L8: Sim
C9: C002 | D9: Beta Comércio SA | E9: Patrícia Gomes | F9: (21) 3777-2020 | G9: patricia@betacom.com.br | H9: Rio de Janeiro | I9: RJ | J9: Comércio | K9: Inbound | L9: Sim
C10: C003 | D10: Gamma Tech | E10: Rodrigo Dias | F10: (31) 3444-3030 | G10: rodrigo@gammatech.io | H10: Belo Horizonte | I10: MG | J10: Tecnologia | K10: Site | L10: Sim
C11: C004 | D11: Delta Saúde | E11: Juliana Prado | F11: (41) 3222-4040 | G11: juliana@deltasaude.com.br | H11: Curitiba | I11: PR | J11: Saúde | K11: Outbound | L11: Sim
C12: C005 | D12: Epsilon Educação | E12: Tiago Moura | F12: (51) 3111-5050 | G12: tiago@epsiloned.com.br | H12: Porto Alegre | I12: RS | J12: Educação | K12: Evento | L12: Sim
C13: C006 | D13: Zeta Agro | E13: Marina Castro | F13: (62) 3999-6060 | G13: marina@zetaagro.com.br | H13: Goiânia | I13: GO | J13: Agronegócio | K13: Parceiro | L13: Sim
C14: C007 | D14: Eta Serviços | E14: Bruno Teles | F14: (85) 3888-7070 | G14: bruno@etaserv.com.br | H14: Fortaleza | I14: CE | J14: Serviços | K14: Base Ativa | L14: Sim
C15: C008 | D15: Theta Financeira | E15: Renata Luz | F15: (11) 3666-8080 | G15: renata@thetafin.com.br | H15: São Paulo | I15: SP | J15: Financeiro | K15: Indicação | L15: Sim
C16: C009 | D16: Iota Distribuidora | E16: Carlos Menezes | F16: (48) 3555-9090 | G16: carlos@iotadist.com.br | H16: Florianópolis | I16: SC | J16: Comércio | K16: Redes Sociais | L16: Sim
C17: C010 | D17: Kappa Logística | E17: Sandra Vieira | F17: (71) 3444-1122 | G17: sandra@kappalog.com.br | H17: Salvador | I17: BA | J17: Serviços | K17: Inbound | L17: Sim
C18: C011 | D18: Lambda Metais | E18: Otávio Freitas | F18: (19) 3333-2233 | G18: otavio@lambdametais.com.br | H18: Campinas | I18: SP | J18: Indústria | K18: Outbound | L18: Sim
C19: C012 | D19: Mu Consultoria | E19: Helena Braga | F19: (61) 3222-3344 | G19: helena@muconsult.com.br | H19: Brasília | I19: DF | J19: Serviços | K19: Site | L19: Não

Sheet Produtos (hidden)
C2: CADASTRO DE PRODUTOS / SERVIÇOS
C3: Solução de Gestão de Operações Comerciais
C4: Instruções | D4: Dashboard | E4: Vendedores | F4: Clientes | G4: Produtos | H4: Pipeline | I4: Vendas | J4: Comissões | K4: Forecast | L4: Metas | M4: Agenda
C6: A Comissão Específica definida aqui é a que será usada no cálculo da comissão da venda.
C7: Código | D7: Produto | E7: Categoria | F7: Preço Base | G7: Comissão Específica | H7: Ativo
C8: P001 | D8: Licença ERP Corporate | E8: Produto | F8: R$ 48,000 | G8: 5.0% | H8: Ativo
C9: P002 | D9: Licença ERP Starter | E9: Produto | F9: R$ 18,000 | G9: 5.0% | H9: Ativo
C10: P003 | D10: Implantação Técnica | E10: Serviço | F10: R$ 26,000 | G10: 4.0% | H10: Ativo
C11: P004 | D11: Plano Suporte Premium | E11: Plano | F11: R$ 12,000 | G11: 6.0% | H11: Ativo
C12: P005 | D12: Plano Suporte Básico | E12: Plano | F12: R$ 4,800 | G12: 6.0% | H12: Ativo
C13: P006 | D13: Assinatura BI Analytics | E13: Assinatura | F13: R$ 15,600 | G13: 7.0% | H13: Ativo
C14: P007 | D14: Consultoria Estratégica | E14: Consultoria | F14: R$ 35,000 | G14: 8.0% | H14: Ativo
C15: P008 | D15: Consultoria Processos | E15: Consultoria | F15: R$ 22,000 | G15: 8.0% | H15: Ativo
C16: P009 | D16: Treinamento Equipe | E16: Serviço | F16: R$ 9,500 | G16: 4.0% | H16: Ativo
C17: P010 | D17: Módulo Fiscal Adicional | E17: Produto | F17: R$ 7,200 | G17: 5.0% | H17: Inativo

Sheet Pipeline (hidden)
C2: PIPELINE COMERCIAL
C3: Solução de Gestão de Operações Comerciais
C4: Instruções | D4: Dashboard | E4: Vendedores | F4: Clientes | G4: Produtos | H4: Pipeline | I4: Vendas | J4: Comissões | K4: Forecast | L4: Metas | M4: Agenda
C6: Atualize a coluna Última Atualização semanalmente. Linhas em vermelho estão paradas há mais de 15 dias.
C7: Cód. Oport. | D7: Cliente | E7: Produto | F7: Responsável | G7: Origem | H7: Data Entrada | I7: Estágio | J7: Probabilidade | K7: Valor | L7: Valor Ponderado | M7: Próxima Ação | N7: Data Próx. Ação | O7: Última Atualização | P7: Dias sem Atualização | Q7: Status
C8: OP001 | D8: Alfa Indústria Ltda | E8: Licença ERP Corporate | F8: Ana Ribeiro | G8: Indicação | H8: 2026-03-30 | I8: Lead | J8: 10% | K8: R$ 38,400 | L8: =IFERROR(K8*J8,0) -> R$ 3,840 | M8: Ligar para retomar | N8: 2026-11-05 | O8: 2026-07-26 | P8: =IF(O8="","",IFERROR(TODAY()-O8,"")) -> 18 | Q8: Em aberto
C9: OP002 | D9: Beta Comércio SA | E9: Plano Suporte Premium | F9: Bruno Carvalho | G9: Redes Sociais | H9: 2026-04-02 | I9: Lead | J9: 10% | K9: R$ 10,560 | L9: =IFERROR(K9*J9,0) -> R$ 1,056 | M9: Enviar proposta | N9: 2026-12-06 | O9: 2026-07-23 | P9: =IF(O9="","",IFERROR(TODAY()-O9,"")) -> 21 | Q9: Em aberto
C10: OP003 | D10: Gamma Tech | E10: Consultoria Estratégica | F10: Camila Souza | G10: Inbound | H10: 2026-04-05 | I10: Lead | J10: 10% | K10: R$ 33,600 | L10: R$ 3,360 | M10: Agendar reunião | N10: 2026-11-07 | O10: 2026-07-19 | P10: 25 | Q10: Em aberto
C11: OP004 | D11: Delta Saúde | E11: Licença ERP Corporate | F11: Diego Martins | G11: Base Ativa | H11: 2026-04-08 | I11: Lead | J11: 10% | K11: R$ 49,920 | L11: R$ 4,992 | M11: Follow-up comercial | N11: 2026-12-08 | O11: 2026-07-14 | P11: 30 | Q11: Em aberto
C12: OP005 | D12: Epsilon Educação | E12: Plano Suporte Premium | F12: Elisa Nogueira | G12: Evento | H12: 2026-04-11 | I12: Contato | J12: 20% | K12: R$ 13,440 | L12: R$ 2,688 | M12: Aguardar retorno | N12: 2026-11-09 | O12: 2026-07-10 | P12: 34 | Q12: Em aberto
C13: OP006 | D13: Zeta Agro | E13: Consultoria Estratégica | F13: Fábio Lima | G13: Site | H13: 2026-04-14 | I13: Contato | J13: 20% | K13: R$ 42,000 | L13: R$ 8,400 | M13: Negociar desconto | N13: 2026-11-10 | O13: 2026-07-03 | P13: 41 | Q13: Em aberto
C14: OP007 | D14: Eta Serviços | E14: Licença ERP Corporate | F14: Gabriela Pinto | G14: Parceiro | H14: 2026-04-17 | I14: Contato | J14: 20% | K14: R$ 61,440 | L14: R$ 12,288 | M14: Enviar contrato | N14: 2026-11-11 | O14: 2026-06-26 | P14: 48 | Q14: Em aberto
C15: OP008 | D15: Theta Financeira | E15: Plano Suporte Premium | F15: Ana Ribeiro | G15: Outbound | H15: 2026-04-20 | I15: Contato | J15: 20% | K15: R$ 9,600 | L15: R$ 1,920 | M15: Ligar para retomar | N15: 2026-11-12 | O15: 2026-07-21 | P15: 23 | Q15: Em aberto
C16: OP009 | D16: Iota Distribuidora | E16: Consultoria Estratégica | F16: Bruno Carvalho | G16: Indicação | H16: 2026-04-23 | I16: Diagnóstico | J16: 35% | K16: R$ 30,800 | L16: R$ 10,780 | M16: Enviar proposta | N16: 2026-10-13 | O16: 2026-07-25 | P16: 19 | Q16: Em aberto
C17: OP010 | D17: Kappa Logística | E17: Licença ERP Corporate | F17: Camila Souza | G17: Redes Sociais | H17: 2026-04-26 | I17: Diagnóstico | J17: 35% | K17: R$ 46,080 | L17: R$ 16,128 | M17: Agendar reunião | N17: 2026-10-14 | O17: 2026-07-07 | P17: 37 | Q17: Em aberto
C18: OP011 | D18: Lambda Metais | E18: Plano Suporte Premium | F18: Diego Martins | G18: Inbound | H18: 2026-04-29 | I18: Diagnóstico | J18: 35% | K18: R$ 12,480 | L18: R$ 4,368 | M18: Follow-up comercial | N18: 2026-10-15 | O18: 2026-07-26 | P18: 18 | Q18: Em aberto
C19: OP012 | D19: Alfa Indústria Ltda | E19: Consultoria Estratégica | F19: Elisa Nogueira | G19: Base Ativa | H19: 2026-05-02 | I19: Proposta | J19: 55% | K19: R$ 39,200 | L19: R$ 21,560 | M19: Aguardar retorno | N19: 2026-09-16 | O19: 2026-07-23 | P19: 21 | Q19: Em aberto
C20: OP013 | D20: Beta Comércio SA | E20: Licença ERP Corporate | F20: Fábio Lima | G20: Evento | H20: 2026-05-05 | I20: Proposta | J20: 55% | K20: R$ 57,600 | L20: R$ 31,680 | M20: Negociar desconto | N20: 2026-09-17 | O20: 2026-07-19 | P20: 25 | Q20: Em aberto
C21: OP014 | D21: Gamma Tech | E21: Plano Suporte Premium | F21: Gabriela Pinto | G21: Site | H21: 2026-05-08 | I21: Proposta | J21: 55% | K21: R$ 15,360 | L21: R$ 8,448 | M21: Enviar contrato | N21: 2026-09-18 | O21: 2026-07-14 | P21: 30 | Q21: Em aberto
C22: OP015 | D22: Delta Saúde | E22: Consultoria Estratégica | F22: Ana Ribeiro | G22: Parceiro | H22: 2026-05-11 | I22: Proposta | J22: 55% | K22: R$ 28,000 | L22: R$ 15,400 | M22: Ligar para retomar | N22: 2026-09-19 | O22: 2026-07-10 | P22: 34 | Q22: Em aberto
C23: OP016 | D23: Epsilon Educação | E23: Licença ERP Corporate | F23: Bruno Carvalho | G23: Outbound | H23: 2026-05-14 | I23: Negociação | J23: 75% | K23: R$ 42,240 | L23: R$ 31,680 | M23: Enviar proposta | N23: 2026-08-20 | O23: 2026-07-03 | P23: 41 | Q23: Em aberto
C24: OP017 | D24: Zeta Agro | E24: Plano Suporte Premium | F24: Camila Souza | G24: Indicação | H24: 2026-05-17 | I24: Negociação | J24: 75% | K24: R$ 11,520 | L24: R$ 8,640 | M24: Agendar reunião | N24: 2026-08-21 | O24: 2026-06-26 | P24: 48 | Q24: Em aberto
C25: OP018 | D25: Eta Serviços | E25: Consultoria Estratégica | F25: Diego Martins | G25: Redes Sociais | H25: 2026-05-20 | I25: Negociação | J25: 75% | K25: R$ 36,400 | L25: R$ 27,300 | M25: Follow-up comercial | N25: 2026-08-22 | O25: 2026-07-21 | P25: 23 | Q25: Em aberto
C26: OP019 | D26: Theta Financeira | E26: Licença ERP Corporate | F26: Elisa Nogueira | G26: Inbound | H26: 2026-05-23 | I26: Fechado Ganho | J26: 100% | K26: R$ 53,760 | L26: R$ 53,760 | O26: 2026-07-25 | P26: 19 | Q26: Encerrada
C27: OP020 | D27: Iota Distribuidora | E27: Plano Suporte Premium | F27: Fábio Lima | G27: Base Ativa | H27: 2026-05-26 | I27: Fechado Ganho | J27: 100% | K27: R$ 14,400 | L27: R$ 14,400 | O27: 2026-07-07 | P27: 37 | Q27: Encerrada
C28: OP021 | D28: Kappa Logística | E28: Consultoria Estratégica | F28: Gabriela Pinto | G28: Evento | H28: 2026-05-29 | I28: Fechado Ganho | J28: 100% | K28: R$ 44,800 | L28: R$ 44,800 | O28: 2026-07-26 | P28: 18 | Q28: Encerrada
C29: OP022 | D29: Lambda Metais | E29: Licença ERP Corporate | F29: Ana Ribeiro | G29: Site | H29: 2026-06-01 | I29: Fechado Ganho | J29: 100% | K29: R$ 38,400 | L29: R$ 38,400 | O29: 2026-07-23 | P29: 21 | Q29: Encerrada
C30: OP023 | D30: Alfa Indústria Ltda | E30: Plano Suporte Premium | F30: Bruno Carvalho | G30: Parceiro | H30: 2026-06-04 | I30: Fechado Ganho | J30: 100% | K30: R$ 10,560 | L30: R$ 10,560 | O30: 2026-07-19 | P30: 25 | Q30: Encerrada
C31: OP024 | D31: Beta Comércio SA | E31: Consultoria Estratégica | F31: Camila Souza | G31: Outbound | H31: 2026-06-07 | I31: Fechado Ganho | J31: 100% | K31: R$ 33,600 | L31: R$ 33,600 | O31: 2026-07-14 | P31: 30 | Q31: Encerrada
C32: OP025 | D32: Gamma Tech | E32: Licença ERP Corporate | F32: Diego Martins | G32: Indicação | H32: 2026-06-10 | I32: Fechado Ganho | J32: 100% | K32: R$ 49,920 | L32: R$ 49,920 | O32: 2026-07-10 | P32: 34 | Q32: Encerrada
C33: OP026 | D33: Delta Saúde | E33: Plano Suporte Premium | F33: Elisa Nogueira | G33: Redes Sociais | H33: 2026-06-13 | I33: Fechado Ganho | J33: 100% | K33: R$ 13,440 | L33: R$ 13,440 | O33: 2026-07-03 | P33: 41 | Q33: Encerrada
C34: OP027 | D34: Epsilon Educação | E34: Consultoria Estratégica | F34: Fábio Lima | G34: Inbound | H34: 2026-06-16 | I34: Fechado Perdido | J34: 0% | K34: R$ 42,000 | L34: 0 | O34: 2026-06-26 | P34: 48 | Q34: Encerrada
C35: OP028 | D35: Zeta Agro | E35: Licença ERP Corporate | F35: Gabriela Pinto | G35: Base Ativa | H35: 2026-06-19 | I35: Fechado Perdido | J35: 0% | K35: R$ 61,440 | L35: 0 | O35: 2026-07-21 | P35: 23 | Q35: Encerrada
C36: OP029 | D36: Eta Serviços | E36: Plano Suporte Premium | F36: Ana Ribeiro | G36: Evento | H36: 2026-06-22 | I36: Fechado Perdido | J36: 0% | K36: R$ 9,600 | L36: 0 | O36: 2026-07-25 | P36: 19 | Q36: Encerrada
C37: OP030 | D37: Theta Financeira | E37: Consultoria Estratégica | F37: Bruno Carvalho | G37: Site | H37: 2026-06-25 | I37: Cancelado | J37: 0% | K37: R$ 30,800 | L37: 0 | O37: 2026-07-07 | P37: 37 | Q37: Encerrada

Sheet Vendas (hidden)
C2: REGISTRO DE VENDAS
C3: Solução de Gestão de Operações Comerciais
C4: Instruções | D4: Dashboard | E4: Vendedores | F4: Clientes | G4: Produtos | H4: Pipeline | I4: Vendas | J4: Comissões | K4: Forecast | L4: Metas | M4: Agenda
C6: Informe Valor e Desconto. Valor Líquido, Comissão % e Comissão são calculados automaticamente.
C7: Venda | D7: Data | E7: Cliente | F7: Produto | G7: Vendedor | H7: Valor | I7: Desconto | J7: Valor Líquido | K7: Comissão % | L7: Comissão | M7: Pago
C8: VD001 | D8: 2026-01-03 | E8: Alfa Indústria Ltda | F8: Licença ERP Corporate | G8: Ana Ribeiro | H8: R$ 40,800 | I8: 0.0% | J8: =IFERROR(H8*(1-I8),0) -> R$ 40,800 | K8: =IFERROR(VLOOKUP(F8,Produtos!$D$8:$G$17,4,FALSE),IFERROR(VLOOKUP(G8,Vendedores!$D$8:$F$15,3,FALSE),0)) -> 5.0% | L8: =ROUND(J8*K8,2) -> R$ 2,040 | M8: Sim
C9: VD002 | D9: 2026-01-10 | E9: Gamma Tech | F9: Plano Suporte Básico | G9: Bruno Carvalho | H9: R$ 4,416 | I9: 0.0% | J9: =IFERROR(H9*(1-I9),0) -> R$ 4,416 | K9: =IFERROR(VLOOKUP(F9,Produtos!$D$8:$G$17,4,FALSE),IFERROR(VLOOKUP(G9,Vendedores!$D$8:$F$15,3,FALSE),0)) -> 6.0% | L9: =ROUND(J9*K9,2) -> R$ 265 | M9: Sim
C10: VD003 | D10: 2026-02-17 | E10: Epsilon Educação | F10: Treinamento Equipe | G10: Camila Souza | H10: R$ 9,405 | I10: 5.0% | J10: R$ 8,935 | K10: =IFERROR(VLOOKUP(F10,Produtos!$D$8:$G$17,4,FALSE),IFERROR(VLOOKUP(G10,Vendedores!$D$8:$F$15,3,FALSE),0)) -> 4.0% | L10: R$ 357 | M10: Sim
C11: VD004 | D11: 2026-02-24 | E11: Eta Serviços | F11: Plano Suporte Premium | G11: Diego Martins | H11: R$ 12,720 | I11: 0.0% | J11: R$ 12,720 | K11: =IFERROR(VLOOKUP(F11,Produtos!$D$8:$G$17,4,FALSE),IFERROR(VLOOKUP(G11,Vendedores!$D$8:$F$15,3,FALSE),0)) -> 6.0% | L11: R$ 763 | M11: Sim
C12: VD005 | D12: 2026-02-09 | E12: Iota Distribuidora | F12: Consultoria Processos | G12: Elisa Nogueira | H12: R$ 24,860 | I12: 10.0% | J12: R$ 22,374 | K12: =IFERROR(VLOOKUP(F12,Produtos!$D$8:$G$17,4,FALSE),IFERROR(VLOOKUP(G12,Vendedores!$D$8:$F$15,3,FALSE),0)) -> 8.0% | L12: R$ 1,790 | M12: Sim
C13: VD006 | D13: 2026-03-16 | E13: Lambda Metais | F13: Implantação Técnica | G13: Fábio Lima | H13: R$ 31,200 | I13: 3.0% | J13: R$ 30,264 | K13: =IFERROR(VLOOKUP(F13,Produtos!$D$8:$G$17,4,FALSE),IFERROR(VLOOKUP(G13,Vendedores!$D$8:$F$15,3,FALSE),0)) -> 4.0% | L13: R$ 1,211 | M13: Sim
C14: VD007 | D14: 2026-03-23 | E14: Beta Comércio SA | F14: Consultoria Estratégica | G14: Gabriela Pinto | H14: R$ 29,750 | I14: 0.0% | J14: R$ 29,750 | K14: =IFERROR(VLOOKUP(F14,Produtos!$D$8:$G$17,4,FALSE),IFERROR(VLOOKUP(G14,Vendedores!$D$8:$F$15,3,FALSE),0)) -> 8.0% | L14: R$ 2,380 | M14: Sim
C15: VD008 | D15: 2026-03-08 | E15: Delta Saúde | F15: Licença ERP Starter | G15: Ana Ribeiro | H15: R$ 16,560 | I15: 7.0% | J15: R$ 15,401 | K15: =IFERROR(VLOOKUP(F15,Produtos!$D$8:$G$17,4,FALSE),IFERROR(VLOOKUP(G15,Vendedores!$D$8:$F$15,3,FALSE),0)) -> 5.0% | L15: R$ 770 | M15: Sim
C16: VD009 | D16: 2026-04-15 | E16: Zeta Agro | F16: Assinatura BI Analytics | G16: Bruno Carvalho | H16: R$ 15,444 | I16: 5.0% | J16: R$ 14,672 | K16: =IFERROR(VLOOKUP(F16,Produtos!$D$8:$G$17,4,FALSE),IFERROR(VLOOKUP(G16,Vendedores!$D$8:$F$15,3,FALSE),0)) -> 7.0% | L16: R$ 1,027 | M16: Sim
C17: VD010 | D17: 2026-04-22 | E17: Theta Financeira | F17: Licença ERP Corporate | G17: Camila Souza | H17: R$ 50,880 | I17: 0.0% | J17: R$ 50,880 | K17: =IFERROR(VLOOKUP(F17,Produtos!$D$8:$G$17,4,FALSE),IFERROR(VLOOKUP(G17,Vendedores!$D$8:$F$15,3,FALSE),0)) -> 5.0% | L17: R$ 2,544 | M17: Sim
C18: VD011 | D18: 2026-04-07 | E18: Kappa Logística | F18: Plano Suporte Básico | G18: Diego Martins | H18: R$ 5,424 | I18: 0.0% | J18: R$ 5,424 | K18: =IFERROR(VLOOKUP(F18,Produtos!$D$8:$G$17,4,FALSE),IFERROR(VLOOKUP(G18,Vendedores!$D$8:$F$15,3,FALSE),0)) -> 6.0% | L18: R$ 325 | M18: Sim
C19: VD012 | D19: 2026-04-14 | E19: Alfa Indústria Ltda | F19: Treinamento Equipe | G19: Elisa Nogueira | H19: R$ 11,400 | I19: 0.0% | J19: R$ 11,400 | K19: =IFERROR(VLOOKUP(F19,Produtos!$D$8:$G$17,4,FALSE),IFERROR(VLOOKUP(G19,Vendedores!$D$8:$F$15,3,FALSE),0)) -> 4.0% | L19: R$ 456 | M19: Sim
C20: VD013 | D20: 2026-05-21 | E20: Gamma Tech | F20: Plano Suporte Premium | G20: Fábio Lima | H20: R$ 10,200 | I20: 5.0% | J20: R$ 9,690 | K20: =IFERROR(VLOOKUP(F20,Produtos!$D$8:$G$17,4,FALSE),IFERROR(VLOOKUP(G20,Vendedores!$D$8:$F$15,3,FALSE),0)) -> 6.0% | L20: R$ 581 | M20: Sim
C21: VD014 | D21: 2026-05-06 | E21: Epsilon Educação | F21: Consultoria Processos | G21: Gabriela Pinto | H21: R$ 20,240 | I21: 0.0% | J21: R$ 20,240 | K21: =IFERROR(VLOOKUP(F21,Produtos!$D$8:$G$17,4,FALSE),IFERROR(VLOOKUP(G21,Vendedores!$D$8:$F$15,3,FALSE),0)) -> 8.0% | L21: R$ 1,619 | M21: Sim
C22: VD015 | D22: 2026-05-13 | E22: Eta Serviços | F22: Implantação Técnica | G22: Ana Ribeiro | H22: R$ 25,740 | I22: 10.0% | J22: R$ 23,166 | K22: =IFERROR(VLOOKUP(F22,Produtos!$D$8:$G$17,4,FALSE),IFERROR(VLOOKUP(G22,Vendedores!$D$8:$F$15,3,FALSE),0)) -> 4.0% | L22: R$ 927 | M22: Sim
C23: VD016 | D23: 2026-06-20 | E23: Iota Distribuidora | F23: Consultoria Estratégica | G23: Bruno Carvalho | H23: R$ 37,100 | I23: 3.0% | J23: R$ 35,987 | K23: =IFERROR(VLOOKUP(F23,Produtos!$D$8:$G$17,4,FALSE),IFERROR(VLOOKUP(G23,Vendedores!$D$8:$F$15,3,FALSE),0)) -> 8.0% | L23: R$ 2,879 | M23: Sim
C24: VD017 | D24: 2026-06-05 | E24: Lambda Metais | F24: Licença ERP Starter | G24: Camila Souza | H24: R$ 20,340 | I24: 0.0% | J24: R$ 20,340 | K24: =IFERROR(VLOOKUP(F24,Produtos!$D$8:$G$17,4,FALSE),IFERROR(VLOOKUP(G24,Vendedores!$D$8:$F$15,3,FALSE),0)) -> 5.0% | L24: R$ 1,017 | M24: Sim
C25: VD018 | D25: 2026-06-12 | E25: Beta Comércio SA | F25: Assinatura BI Analytics | G25: Diego Martins | H25: R$ 18,720 | I25: 7.0% | J25: R$ 17,410 | K25: =IFERROR(VLOOKUP(F25,Produtos!$D$8:$G$17,4,FALSE),IFERROR(VLOOKUP(G25,Vendedores!$D$8:$F$15,3,FALSE),0)) -> 7.0% | L25: R$ 1,219 | M25: Sim
C26: VD019 | D26: 2026-06-19 | E26: Delta Saúde | F26: Licença ERP Corporate | G26: Elisa Nogueira | H26: R$ 40,800 | I26: 5.0% | J26: R$ 38,760 | K26: =IFERROR(VLOOKUP(F26,Produtos!$D$8:$G$17,4,FALSE),IFERROR(VLOOKUP(G26,Vendedores!$D$8:$F$15,3,FALSE),0)) -> 5.0% | L26: R$ 1,938 | M26: Sim
C27: VD020 | D27: 2026-07-04 | E27: Zeta Agro | F27: Plano Suporte Básico | G27: Fábio Lima | H27: R$ 4,416 | I27: 0.0% | J27: R$ 4,416 | K27: =IFERROR(VLOOKUP(F27,Produtos!$D$8:$G$17,4,FALSE),IFERROR(VLOOKUP(G27,Vendedores!$D$8:$F$15,3,FALSE),0)) -> 6.0% | L27: R$ 265 | M27: Sim
C28: VD021 | D28: 2026-07-11 | E28: Theta Financeira | F28: Treinamento Equipe | G28: Gabriela Pinto | H28: R$ 9,405 | I28: 0.0% | J28: R$ 9,405 | K28: =IFERROR(VLOOKUP(F28,Produtos!$D$8:$G$17,4,FALSE),IFERROR(VLOOKUP(G28,Vendedores!$D$8:$F$15,3,FALSE),0)) -> 4.0% | L28: R$ 376 | M28: Não
C29: VD022 | D29: 2026-07-18 | E29: Kappa Logística | F29: Plano Suporte Premium | G29: Ana Ribeiro | H29: R$ 12,720 | I29: 0.0% | J29: R$ 12,720 | K29: =IFERROR(VLOOKUP(F29,Produtos!$D$8:$G$17,4,FALSE),IFERROR(VLOOKUP(G29,Vendedores!$D$8:$F$15,3,FALSE),0)) -> 6.0% | L29: R$ 763 | M29: Não
C30: VD023 | D30: 2026-07-03 | E30: Alfa Indústria Ltda | F30: Consultoria Processos | G30: Bruno Carvalho | H30: R$ 24,860 | I30: 5.0% | J30: R$ 23,617 | K30: =IFERROR(VLOOKUP(F30,Produtos!$D$8:$G$17,4,FALSE),IFERROR(VLOOKUP(G30,Vendedores!$D$8:$F$15,3,FALSE),0)) -> 8.0% | L30: R$ 1,889 | M30: Não
C31: VD024 | D31: 2026-07-10 | E31: Gamma Tech | F31: Implantação Técnica | G31: Camila Souza | H31: R$ 31,200 | I31: 0.0% | J31: R$ 31,200 | K31: =IFERROR(VLOOKUP(F31,Produtos!$D$8:$G$17,4,FALSE),IFERROR(VLOOKUP(G31,Vendedores!$D$8:$F$15,3,FALSE),0)) -> 4.0% | L31: R$ 1,248 | M31: Não
C32: VD025 | D32: 2026-07-17 | E32: Epsilon Educação | F32: Consultoria Estratégica | G32: Diego Martins | H32: R$ 29,750 | I32: 10.0% | J32: R$ 26,775 | K32: =IFERROR(VLOOKUP(F32,Produtos!$D$8:$G$17,4,FALSE),IFERROR(VLOOKUP(G32,Vendedores!$D$8:$F$15,3,FALSE),0)) -> 8.0% | L32: R$ 2,142 | M32: Não

Sheet Comissões (hidden)
C2: CONTROLE DE COMISSÕES
C3: Solução de Gestão de Operações Comerciais
C4: Instruções | D4: Dashboard | E4: Vendedores | F4: Clientes | G4: Produtos | H4: Pipeline | I4: Vendas | J4: Comissões | K4: Forecast | L4: Metas | M4: Agenda
C6: INDICADORES DE COMISSÃO
C8: Comissão Total | E8: Comissão Paga | G8: Comissão Pendente
C9: =IFERROR(SUM(E12:E36),0) -> R$ 30,792 | E9: =IFERROR(SUMIF(G12:G36,"Pago",E12:E36),0) -> R$ 24,373 | G9: =IFERROR(SUMIF(G12:G36,"Pendente",E12:E36),0) -> R$ 6,419
C11: Venda | D11: Vendedor | E11: Comissão | F11: Data Pagamento | G11: Status | H11: Observações
C12: =IFERROR(Vendas!C8,"") -> VD001 | D12: =IFERROR(Vendas!G8,"") -> Ana Ribeiro | E12: =IFERROR(Vendas!L8,0) -> R$ 2,040 | F12: =IF(Vendas!M8="Sim",Vendas!D8+30,"") -> 2026-02-02 | G12: =IF(Vendas!M8="Sim","Pago","Pendente") -> Pago | H12: =IF(Vendas!M8="Sim","Comissão liquidada","Aguardando liquidação da venda") -> Comissão liquidada
C13: =IFERROR(Vendas!C9,"") -> VD002 | D13: =IFERROR(Vendas!G9,"") -> Bruno Carvalho | E13: =IFERROR(Vendas!L9,0) -> R$ 265 | F13: =IF(Vendas!M9="Sim",Vendas!D9+30,"") -> 2026-02-09 | G13: =IF(Vendas!M9="Sim","Pago","Pendente") -> Pago | H13: =IF(Vendas!M9="Sim","Comissão liquidada","Aguardando liquidação da venda") -> Comissão liquidada
C14: =IFERROR(Vendas!C10,"") -> VD003 | D14: =IFERROR(Vendas!G10,"") -> Camila Souza | E14: =IFERROR(Vendas!L10,0) -> R$ 357 | F14: =IF(Vendas!M10="Sim",Vendas!D10+30,"") -> 2026-03-19 | G14: =IF(Vendas!M10="Sim","Pago","Pendente") -> Pago | H14: =IF(Vendas!M10="Sim","Comissão liquidada","Aguardando liquidação da venda") -> Comissão liquidada
C15: =IFERROR(Vendas!C11,"") -> VD004 | D15: =IFERROR(Vendas!G11,"") -> Diego Martins | E15: =IFERROR(Vendas!L11,0) -> R$ 763 | F15: =IF(Vendas!M11="Sim",Vendas!D11+30,"") -> 2026-03-26 | G15: =IF(Vendas!M11="Sim","Pago","Pendente") -> Pago | H15: =IF(Vendas!M11="Sim","Comissão liquidada","Aguardando liquidação da venda") -> Comissão liquidada
C16: =IFERROR(Vendas!C12,"") -> VD005 | D16: =IFERROR(Vendas!G12,"") -> Elisa Nogueira | E16: =IFERROR(Vendas!L12,0) -> R$ 1,790 | F16: =IF(Vendas!M12="Sim",Vendas!D12+30,"") -> 2026-03-11 | G16: =IF(Vendas!M12="Sim","Pago","Pendente") -> Pago | H16: =IF(Vendas!M12="Sim","Comissão liquidada","Aguardando liquidação da venda") -> Comissão liquidada
C17: =IFERROR(Vendas!C13,"") -> VD006 | D17: =IFERROR(Vendas!G13,"") -> Fábio Lima | E17: =IFERROR(Vendas!L13,0) -> R$ 1,211 | F17: =IF(Vendas!M13="Sim",Vendas!D13+30,"") -> 2026-04-15 | G17: =IF(Vendas!M13="Sim","Pago","Pendente") -> Pago | H17: =IF(Vendas!M13="Sim","Comissão liquidada","Aguardando liquidação da venda") -> Comissão liquidada
C18: =IFERROR(Vendas!C14,"") -> VD007 | D18: =IFERROR(Vendas!G14,"") -> Gabriela Pinto | E18: =IFERROR(Vendas!L14,0) -> R$ 2,380 | F18: =IF(Vendas!M14="Sim",Vendas!D14+30,"") -> 2026-04-22 | G18: =IF(Vendas!M14="Sim","Pago","Pendente") -> Pago | H18: =IF(Vendas!M14="Sim","Comissão liquidada","Aguardando liquidação da venda") -> Comissão liquidada
C19: =IFERROR(Vendas!C15,"") -> VD008 | D19: =IFERROR(Vendas!G15,"") -> Ana Ribeiro | E19: =IFERROR(Vendas!L15,0) -> R$ 770 | F19: =IF(Vendas!M15="Sim",Vendas!D15+30,"") -> 2026-04-07 | G19: =IF(Vendas!M15="Sim","Pago","Pendente") -> Pago | H19: =IF(Vendas!M15="Sim","Comissão liquidada","Aguardando liquidação da venda") -> Comissão liquidada
C20: =IFERROR(Vendas!C16,"") -> VD009 | D20: =IFERROR(Vendas!G16,"") -> Bruno Carvalho | E20: =IFERROR(Vendas!L16,0) -> R$ 1,027 | F20: =IF(Vendas!M16="Sim",Vendas!D16+30,"") -> 2026-05-15 | G20: =IF(Vendas!M16="Sim","Pago","Pendente") -> Pago | H20: =IF(Vendas!M16="Sim","Comissão liquidada","Aguardando liquidação da venda") -> Comissão liquidada
C21: =IFERROR(Vendas!C17,"") -> VD010 | D21: =IFERROR(Vendas!G17,"") -> Camila Souza | E21: =IFERROR(Vendas!L17,0) -> R$ 2,544 | F21: =IF(Vendas!M17="Sim",Vendas!D17+30,"") -> 2026-05-22 | G21: =IF(Vendas!M17="Sim","Pago","Pendente") -> Pago | H21: =IF(Vendas!M17="Sim","Comissão liquidada","Aguardando liquidação da venda") -> Comissão liquidada
C22: =IFERROR(Vendas!C18,"") -> VD011 | D22: =IFERROR(Vendas!G18,"") -> Diego Martins | E22: =IFERROR(Vendas!L18,0) -> R$ 325 | F22: =IF(Vendas!M18="Sim",Vendas!D18+30,"") -> 2026-05-07 | G22: =IF(Vendas!M18="Sim","Pago","Pendente") -> Pago | H22: =IF(Vendas!M18="Sim","Comissão liquidada","Aguardando liquidação da venda") -> Comissão liquidada
C23: =IFERROR(Vendas!C19,"") -> VD012 | D23: =IFERROR(Vendas!G19,"") -> Elisa Nogueira | E23: =IFERROR(Vendas!L19,0) -> R$ 456 | F23: =IF(Vendas!M19="Sim",Vendas!D19+30,"") -> 2026-05-14 | G23: =IF(Vendas!M19="Sim","Pago","Pendente") -> Pago | H23: =IF(Vendas!M19="Sim","Comissão liquidada","Aguardando liquidação da venda") -> Comissão liquidada
C24: =IFERROR(Vendas!C20,"") -> VD013 | D24: =IFERROR(Vendas!G20,"") -> Fábio Lima | E24: =IFERROR(Vendas!L20,0) -> R$ 581 | F24: =IF(Vendas!M20="Sim",Vendas!D20+30,"") -> 2026-06-20 | G24: =IF(Vendas!M20="Sim","Pago","Pendente") -> Pago | H24: =IF(Vendas!M20="Sim","Comissão liquidada","Aguardando liquidação da venda") -> Comissão liquidada
C25: =IFERROR(Vendas!C21,"") -> VD014 | D25: =IFERROR(Vendas!G21,"") -> Gabriela Pinto | E25: =IFERROR(Vendas!L21,0) -> R$ 1,619 | F25: =IF(Vendas!M21="Sim",Vendas!D21+30,"") -> 2026-06-05 | G25: =IF(Vendas!M21="Sim","Pago","Pendente") -> Pago | H25: =IF(Vendas!M21="Sim","Comissão liquidada","Aguardando liquidação da venda") -> Comissão liquidada
C26: =IFERROR(Vendas!C22,"") -> VD015 | D26: =IFERROR(Vendas!G22,"") -> Ana Ribeiro | E26: =IFERROR(Vendas!L22,0) -> R$ 927 | F26: =IF(Vendas!M22="Sim",Vendas!D22+30,"") -> 2026-06-12 | G26: =IF(Vendas!M22="Sim","Pago","Pendente") -> Pago | H26: =IF(Vendas!M22="Sim","Comissão liquidada","Aguardando liquidação da venda") -> Comissão liquidada
C27: =IFERROR(Vendas!C23,"") -> VD016 | D27: =IFERROR(Vendas!G23,"") -> Bruno Carvalho | E27: =IFERROR(Vendas!L23,0) -> R$ 2,879 | F27: =IF(Vendas!M23="Sim",Vendas!D23+30,"") -> 2026-07-20 | G27: =IF(Vendas!M23="Sim","Pago","Pendente") -> Pago | H27: =IF(Vendas!M23="Sim","Comissão liquidada","Aguardando liquidação da venda") -> Comissão liquidada
C28: =IFERROR(Vendas!C24,"") -> VD017 | D28: =IFERROR(Vendas!G24,"") -> Camila Souza | E28: =IFERROR(Vendas!L24,0) -> R$ 1,017 | F28: =IF(Vendas!M24="Sim",Vendas!D24+30,"") -> 2026-07-05 | G28: =IF(Vendas!M24="Sim","Pago","Pendente") -> Pago | H28: =IF(Vendas!M24="Sim","Comissão liquidada","Aguardando liquidação da venda") -> Comissão liquidada
C29: =IFERROR(Vendas!C25,"") -> VD018 | D29: =IFERROR(Vendas!G25,"") -> Diego Martins | E29: =IFERROR(Vendas!L25,0) -> R$ 1,219 | F29: =IF(Vendas!M25="Sim",Vendas!D25+30,"") -> 2026-07-12 | G29: =IF(Vendas!M25="Sim","Pago","Pendente") -> Pago | H29: =IF(Vendas!M25="Sim","Comissão liquidada","Aguardando liquidação da venda") -> Comissão liquidada
C30: =IFERROR(Vendas!C26,"") -> VD019 | D30: =IFERROR(Vendas!G26,"") -> Elisa Nogueira | E30: =IFERROR(Vendas!L26,0) -> R$ 1,938 | F30: =IF(Vendas!M26="Sim",Vendas!D26+30,"") -> 2026-07-19 | G30: =IF(Vendas!M26="Sim","Pago","Pendente") -> Pago | H30: =IF(Vendas!M26="Sim","Comissão liquidada","Aguardando liquidação da venda") -> Comissão liquidada
C31: =IFERROR(Vendas!C27,"") -> VD020 | D31: =IFERROR(Vendas!G27,"") -> Fábio Lima | E31: =IFERROR(Vendas!L27,0) -> R$ 265 | F31: =IF(Vendas!M27="Sim",Vendas!D27+30,"") -> 2026-08-03 | G31: =IF(Vendas!M27="Sim","Pago","Pendente") -> Pago | H31: =IF(Vendas!M27="Sim","Comissão liquidada","Aguardando liquidação da venda") -> Comissão liquidada
C32: =IFERROR(Vendas!C28,"") -> VD021 | D32: =IFERROR(Vendas!G28,"") -> Gabriela Pinto | E32: =IFERROR(Vendas!L28,0) -> R$ 376 | F32: =IF(Vendas!M28="Sim",Vendas!D28+30,"") ->  | G32: =IF(Vendas!M28="Sim","Pago","Pendente") -> Pendente | H32: =IF(Vendas!M28="Sim","Comissão liquidada","Aguardando liquidação da venda") -> Aguardando liquidação da venda
C33: =IFERROR(Vendas!C29,"") -> VD022 | D33: =IFERROR(Vendas!G29,"") -> Ana Ribeiro | E33: =IFERROR(Vendas!L29,0) -> R$ 763 | F33: =IF(Vendas!M29="Sim",Vendas!D29+30,"") ->  | G33: =IF(Vendas!M29="Sim","Pago","Pendente") -> Pendente | H33: =IF(Vendas!M29="Sim","Comissão liquidada","Aguardando liquidação da venda") -> Aguardando liquidação da venda
C34: =IFERROR(Vendas!C30,"") -> VD023 | D34: =IFERROR(Vendas!G30,"") -> Bruno Carvalho | E34: =IFERROR(Vendas!L30,0) -> R$ 1,889 | F34: =IF(Vendas!M30="Sim",Vendas!D30+30,"") ->  | G34: =IF(Vendas!M30="Sim","Pago","Pendente") -> Pendente | H34: =IF(Vendas!M30="Sim","Comissão liquidada","Aguardando liquidação da venda") -> Aguardando liquidação da venda
C35: =IFERROR(Vendas!C31,"") -> VD024 | D35: =IFERROR(Vendas!G31,"") -> Camila Souza | E35: =IFERROR(Vendas!L31,0) -> R$ 1,248 | F35: =IF(Vendas!M31="Sim",Vendas!D31+30,"") ->  | G35: =IF(Vendas!M31="Sim","Pago","Pendente") -> Pendente | H35: =IF(Vendas!M31="Sim","Comissão liquidada","Aguardando liquidação da venda") -> Aguardando liquidação da venda
C36: =IFERROR(Vendas!C32,"") -> VD025 | D36: =IFERROR(Vendas!G32,"") -> Diego Martins | E36: =IFERROR(Vendas!L32,0) -> R$ 2,142 | F36: =IF(Vendas!M32="Sim",Vendas!D32+30,"") ->  | G36: =IF(Vendas!M32="Sim","Pago","Pendente") -> Pendente | H36: =IF(Vendas!M32="Sim","Comissão liquidada","Aguardando liquidação da venda") -> Aguardando liquidação da venda

Sheet Forecast (hidden)
C2: FORECAST COMERCIAL
C3: Solução de Gestão de Operações Comerciais
C4: Instruções | D4: Dashboard | E4: Vendedores | F4: Clientes | G4: Produtos | H4: Pipeline | I4: Vendas | J4: Comissões | K4: Forecast | L4: Metas | M4: Agenda
C6: Aba automática. Espelha as oportunidades em aberto do Pipeline. Não editar.
C7: Oportunidade | D7: Cliente | E7: Valor | F7: Probabilidade | G7: Valor Ponderado | H7: Mês Previsto | J7: RESUMO DO FORECAST
C8: =IF(OR(Pipeline!I8="Fechado Ganho",Pipeline!I8="Fechado Perdido",Pipeline!I8="Cancelado",Pipeline!C8=""),"",Pipeline!C8) -> OP001 | D8: =IF($C8="","",Pipeline!D8) -> Alfa Indústria Ltda | E8: =IF($C8="","",Pipeline!K8) -> R$ 38,400 | F8: =IF($C8="","",Pipeline!J8) -> 10% | G8: =IF($C8="","",E8*F8) -> R$ 3,840 | H8: =IF($C8="","",IFERROR(CHOOSE(MONTH(Pipeline!N8),"jan","fev","mar","abr","mai","jun","jul","ago","set","out","nov","dez")&"/"&TEXT(YEAR(Pipeline!N8)-2000,"00"),"")) -> nov/26
C9: =IF(OR(Pipeline!I9="Fechado Ganho",Pipeline!I9="Fechado Perdido",Pipeline!I9="Cancelado",Pipeline!C9=""),"",Pipeline!C9) -> OP002 | D9: =IF($C9="","",Pipeline!D9) -> Beta Comércio SA | E9: =IF($C9="","",Pipeline!K9) -> R$ 10,560 | F9: =IF($C9="","",Pipeline!J9) -> 10% | G9: R$ 1,056 | H9: =IF($C9="","",IFERROR(CHOOSE(MONTH(Pipeline!N9),"jan","fev","mar","abr","mai","jun","jul","ago","set","out","nov","dez")&"/"&TEXT(YEAR(Pipeline!N9)-2000,"00"),"")) -> dez/26 | J9: Forecast Total (bruto) | L9: =IFERROR(SUM(E8:E37),0) -> R$ 578,640
C10: =IF(OR(Pipeline!I10="Fechado Ganho",Pipeline!I10="Fechado Perdido",Pipeline!I10="Cancelado",Pipeline!C10=""),"",Pipeline!C10) -> OP003 | D10: =IF($C10="","",Pipeline!D10) -> Gamma Tech | E10: =IF($C10="","",Pipeline!K10) -> R$ 33,600 | F10: =IF($C10="","",Pipeline!J10) -> 10% | G10: R$ 3,360 | H10: =IF($C10="","",IFERROR(CHOOSE(MONTH(Pipeline!N10),"jan","fev","mar","abr","mai","jun","jul","ago","set","out","nov","dez")&"/"&TEXT(YEAR(Pipeline!N10)-2000,"00"),"")) -> nov/26 | J10: Forecast Ponderado | L10: =IFERROR(SUM(G8:G37),0) -> R$ 214,528
C11: =IF(OR(Pipeline!I11="Fechado Ganho",Pipeline!I11="Fechado Perdido",Pipeline!I11="Cancelado",Pipeline!C11=""),"",Pipeline!C11) -> OP004 | D11: =IF($C11="","",Pipeline!D11) -> Delta Saúde | E11: =IF($C11="","",Pipeline!K11) -> R$ 49,920 | F11: =IF($C11="","",Pipeline!J11) -> 10% | G11: R$ 4,992 | H11: =IF($C11="","",IFERROR(CHOOSE(MONTH(Pipeline!N11),"jan","fev","mar","abr","mai","jun","jul","ago","set","out","nov","dez")&"/"&TEXT(YEAR(Pipeline!N11)-2000,"00"),"")) -> dez/26 | J11: Forecast Otimista (x1,20) | L11: =L10*1.2 -> R$ 257,434
C12: =IF(OR(Pipeline!I12="Fechado Ganho",Pipeline!I12="Fechado Perdido",Pipeline!I12="Cancelado",Pipeline!C12=""),"",Pipeline!C12) -> OP005 | D12: =IF($C12="","",Pipeline!D12) -> Epsilon Educação | E12: =IF($C12="","",Pipeline!K12) -> R$ 13,440 | F12: =IF($C12="","",Pipeline!J12) -> 20% | G12: R$ 2,688 | H12: =IF($C12="","",IFERROR(CHOOSE(MONTH(Pipeline!N12),"jan","fev","mar","abr","mai","jun","jul","ago","set","out","nov","dez")&"/"&TEXT(YEAR(Pipeline!N12)-2000,"00"),"")) -> nov/26 | J12: Forecast Conservador (x0,70) | L12: =L10*0.7 -> R$ 150,170
C13: =IF(OR(Pipeline!I13="Fechado Ganho",Pipeline!I13="Fechado Perdido",Pipeline!I13="Cancelado",Pipeline!C13=""),"",Pipeline!C13) -> OP006 | D13: =IF($C13="","",Pipeline!D13) -> Zeta Agro | E13: =IF($C13="","",Pipeline!K13) -> R$ 42,000 | F13: =IF($C13="","",Pipeline!J13) -> 20% | G13: R$ 8,400 | H13: =IF($C13="","",IFERROR(CHOOSE(MONTH(Pipeline!N13),"jan","fev","mar","abr","mai","jun","jul","ago","set","out","nov","dez")&"/"&TEXT(YEAR(Pipeline!N13)-2000,"00"),"")) -> nov/26 | J13: Qtd. Oportunidades Abertas | L13: =COUNTIF(C8:C37,"OP*") -> 18
C14: =IF(OR(Pipeline!I14="Fechado Ganho",Pipeline!I14="Fechado Perdido",Pipeline!I14="Cancelado",Pipeline!C14=""),"",Pipeline!C14) -> OP007 | D14: =IF($C14="","",Pipeline!D14) -> Eta Serviços | E14: =IF($C14="","",Pipeline!K14) -> R$ 61,440 | F14: =IF($C14="","",Pipeline!J14) -> 20% | G14: R$ 12,288 | H14: =IF($C14="","",IFERROR(CHOOSE(MONTH(Pipeline!N14),"jan","fev","mar","abr","mai","jun","jul","ago","set","out","nov","dez")&"/"&TEXT(YEAR(Pipeline!N14)-2000,"00"),"")) -> nov/26
C15: =IF(OR(Pipeline!I15="Fechado Ganho",Pipeline!I15="Fechado Perdido",Pipeline!I15="Cancelado",Pipeline!C15=""),"",Pipeline!C15) -> OP008 | D15: =IF($C15="","",Pipeline!D15) -> Theta Financeira | E15: =IF($C15="","",Pipeline!K15) -> R$ 9,600 | F15: =IF($C15="","",Pipeline!J15) -> 20% | G15: R$ 1,920 | H15: =IF($C15="","",IFERROR(CHOOSE(MONTH(Pipeline!N15),"jan","fev","mar","abr","mai","jun","jul","ago","set","out","nov","dez")&"/"&TEXT(YEAR(Pipeline!N15)-2000,"00"),"")) -> nov/26
C16: =IF(OR(Pipeline!I16="Fechado Ganho",Pipeline!I16="Fechado Perdido",Pipeline!I16="Cancelado",Pipeline!C16=""),"",Pipeline!C16) -> OP009 | D16: =IF($C16="","",Pipeline!D16) -> Iota Distribuidora | E16: =IF($C16="","",Pipeline!K16) -> R$ 30,800 | F16: =IF($C16="","",Pipeline!J16) -> 35% | G16: R$ 10,780 | H16: =IF($C16="","",IFERROR(CHOOSE(MONTH(Pipeline!N16),"jan","fev","mar","abr","mai","jun","jul","ago","set","out","nov","dez")&"/"&TEXT(YEAR(Pipeline!N16)-2000,"00"),"")) -> out/26
C17: =IF(OR(Pipeline!I17="Fechado Ganho",Pipeline!I17="Fechado Perdido",Pipeline!I17="Cancelado",Pipeline!C17=""),"",Pipeline!C17) -> OP010 | D17: =IF($C17="","",Pipeline!D17) -> Kappa Logística | E17: =IF($C17="","",Pipeline!K17) -> R$ 46,080 | F17: =IF($C17="","",Pipeline!J17) -> 35% | G17: R$ 16,128 | H17: =IF($C17="","",IFERROR(CHOOSE(MONTH(Pipeline!N17),"jan","fev","mar","abr","mai","jun","jul","ago","set","out","nov","dez")&"/"&TEXT(YEAR(Pipeline!N17)-2000,"00"),"")) -> out/26
C18: =IF(OR(Pipeline!I18="Fechado Ganho",Pipeline!I18="Fechado Perdido",Pipeline!I18="Cancelado",Pipeline!C18=""),"",Pipeline!C18) -> OP011 | D18: =IF($C18="","",Pipeline!D18) -> Lambda Metais | E18: =IF($C18="","",Pipeline!K18) -> R$ 12,480 | F18: =IF($C18="","",Pipeline!J18) -> 35% | G18: R$ 4,368 | H18: =IF($C18="","",IFERROR(CHOOSE(MONTH(Pipeline!N18),"jan","fev","mar","abr","mai","jun","jul","ago","set","out","nov","dez")&"/"&TEXT(YEAR(Pipeline!N18)-2000,"00"),"")) -> out/26
C19: =IF(OR(Pipeline!I19="Fechado Ganho",Pipeline!I19="Fechado Perdido",Pipeline!I19="Cancelado",Pipeline!C19=""),"",Pipeline!C19) -> OP012 | D19: =IF($C19="","",Pipeline!D19) -> Alfa Indústria Ltda | E19: =IF($C19="","",Pipeline!K19) -> R$ 39,200 | F19: =IF($C19="","",Pipeline!J19) -> 55% | G19: R$ 21,560 | H19: =IF($C19="","",IFERROR(CHOOSE(MONTH(Pipeline!N19),"jan","fev","mar","abr","mai","jun","jul","ago","set","out","nov","dez")&"/"&TEXT(YEAR(Pipeline!N19)-2000,"00"),"")) -> set/26
C20: =IF(OR(Pipeline!I20="Fechado Ganho",Pipeline!I20="Fechado Perdido",Pipeline!I20="Cancelado",Pipeline!C20=""),"",Pipeline!C20) -> OP013 | D20: =IF($C20="","",Pipeline!D20) -> Beta Comércio SA | E20: =IF($C20="","",Pipeline!K20) -> R$ 57,600 | F20: =IF($C20="","",Pipeline!J20) -> 55% | G20: R$ 31,680 | H20: =IF($C20="","",IFERROR(CHOOSE(MONTH(Pipeline!N20),"jan","fev","mar","abr","mai","jun","jul","ago","set","out","nov","dez")&"/"&TEXT(YEAR(Pipeline!N20)-2000,"00"),"")) -> set/26
C21: =IF(OR(Pipeline!I21="Fechado Ganho",Pipeline!I21="Fechado Perdido",Pipeline!I21="Cancelado",Pipeline!C21=""),"",Pipeline!C21) -> OP014 | D21: =IF($C21="","",Pipeline!D21) -> Gamma Tech | E21: =IF($C21="","",Pipeline!K21) -> R$ 15,360 | F21: =IF($C21="","",Pipeline!J21) -> 55% | G21: R$ 8,448 | H21: =IF($C21="","",IFERROR(CHOOSE(MONTH(Pipeline!N21),"jan","fev","mar","abr","mai","jun","jul","ago","set","out","nov","dez")&"/"&TEXT(YEAR(Pipeline!N21)-2000,"00"),"")) -> set/26
C22: =IF(OR(Pipeline!I22="Fechado Ganho",Pipeline!I22="Fechado Perdido",Pipeline!I22="Cancelado",Pipeline!C22=""),"",Pipeline!C22) -> OP015 | D22: =IF($C22="","",Pipeline!D22) -> Delta Saúde | E22: =IF($C22="","",Pipeline!K22) -> R$ 28,000 | F22: =IF($C22="","",Pipeline!J22) -> 55% | G22: R$ 15,400 | H22: =IF($C22="","",IFERROR(CHOOSE(MONTH(Pipeline!N22),"jan","fev","mar","abr","mai","jun","jul","ago","set","out","nov","dez")&"/"&TEXT(YEAR(Pipeline!N22)-2000,"00"),"")) -> set/26
C23: =IF(OR(Pipeline!I23="Fechado Ganho",Pipeline!I23="Fechado Perdido",Pipeline!I23="Cancelado",Pipeline!C23=""),"",Pipeline!C23) -> OP016 | D23: =IF($C23="","",Pipeline!D23) -> Epsilon Educação | E23: =IF($C23="","",Pipeline!K23) -> R$ 42,240 | F23: =IF($C23="","",Pipeline!J23) -> 75% | G23: R$ 31,680 | H23: =IF($C23="","",IFERROR(CHOOSE(MONTH(Pipeline!N23),"jan","fev","mar","abr","mai","jun","jul","ago","set","out","nov","dez")&"/"&TEXT(YEAR(Pipeline!N23)-2000,"00"),"")) -> ago/26
C24: =IF(OR(Pipeline!I24="Fechado Ganho",Pipeline!I24="Fechado Perdido",Pipeline!I24="Cancelado",Pipeline!C24=""),"",Pipeline!C24) -> OP017 | D24: =IF($C24="","",Pipeline!D24) -> Zeta Agro | E24: =IF($C24="","",Pipeline!K24) -> R$ 11,520 | F24: =IF($C24="","",Pipeline!J24) -> 75% | G24: R$ 8,640 | H24: =IF($C24="","",IFERROR(CHOOSE(MONTH(Pipeline!N24),"jan","fev","mar","abr","mai","jun","jul","ago","set","out","nov","dez")&"/"&TEXT(YEAR(Pipeline!N24)-2000,"00"),"")) -> ago/26
C25: =IF(OR(Pipeline!I25="Fechado Ganho",Pipeline!I25="Fechado Perdido",Pipeline!I25="Cancelado",Pipeline!C25=""),"",Pipeline!C25) -> OP018 | D25: =IF($C25="","",Pipeline!D25) -> Eta Serviços | E25: =IF($C25="","",Pipeline!K25) -> R$ 36,400 | F25: =IF($C25="","",Pipeline!J25) -> 75% | G25: R$ 27,300 | H25: =IF($C25="","",IFERROR(CHOOSE(MONTH(Pipeline!N25),"jan","fev","mar","abr","mai","jun","jul","ago","set","out","nov","dez")&"/"&TEXT(YEAR(Pipeline!N25)-2000,"00"),"")) -> ago/26
C26: =IF(OR(Pipeline!I26="Fechado Ganho",Pipeline!I26="Fechado Perdido",Pipeline!I26="Cancelado",Pipeline!C26=""),"",Pipeline!C26) ->  | D26: =IF($C26="","",Pipeline!D26) ->  | E26: =IF($C26="","",Pipeline!K26) ->  | F26: =IF($C26="","",Pipeline!J26) ->  | H26: =IF($C26="","",IFERROR(CHOOSE(MONTH(Pipeline!N26),"jan","fev","mar","abr","mai","jun","jul","ago","set","out","nov","dez")&"/"&TEXT(YEAR(Pipeline!N26)-2000,"00"),"")) -> 
C27: =IF(OR(Pipeline!I27="Fechado Ganho",Pipeline!I27="Fechado Perdido",Pipeline!I27="Cancelado",Pipeline!C27=""),"",Pipeline!C27) ->  | D27: =IF($C27="","",Pipeline!D27) ->  | E27: =IF($C27="","",Pipeline!K27) ->  | F27: =IF($C27="","",Pipeline!J27) ->  | H27: =IF($C27="","",IFERROR(CHOOSE(MONTH(Pipeline!N27),"jan","fev","mar","abr","mai","jun","jul","ago","set","out","nov","dez")&"/"&TEXT(YEAR(Pipeline!N27)-2000,"00"),"")) -> 
C28: =IF(OR(Pipeline!I28="Fechado Ganho",Pipeline!I28="Fechado Perdido",Pipeline!I28="Cancelado",Pipeline!C28=""),"",Pipeline!C28) ->  | D28: =IF($C28="","",Pipeline!D28) ->  | E28: =IF($C28="","",Pipeline!K28) ->  | F28: =IF($C28="","",Pipeline!J28) ->  | H28: =IF($C28="","",IFERROR(CHOOSE(MONTH(Pipeline!N28),"jan","fev","mar","abr","mai","jun","jul","ago","set","out","nov","dez")&"/"&TEXT(YEAR(Pipeline!N28)-2000,"00"),"")) -> 
C29: =IF(OR(Pipeline!I29="Fechado Ganho",Pipeline!I29="Fechado Perdido",Pipeline!I29="Cancelado",Pipeline!C29=""),"",Pipeline!C29) ->  | D29: =IF($C29="","",Pipeline!D29) ->  | E29: =IF($C29="","",Pipeline!K29) ->  | F29: =IF($C29="","",Pipeline!J29) ->  | H29: =IF($C29="","",IFERROR(CHOOSE(MONTH(Pipeline!N29),"jan","fev","mar","abr","mai","jun","jul","ago","set","out","nov","dez")&"/"&TEXT(YEAR(Pipeline!N29)-2000,"00"),"")) -> 
C30: =IF(OR(Pipeline!I30="Fechado Ganho",Pipeline!I30="Fechado Perdido",Pipeline!I30="Cancelado",Pipeline!C30=""),"",Pipeline!C30) ->  | D30: =IF($C30="","",Pipeline!D30) ->  | E30: =IF($C30="","",Pipeline!K30) ->  | F30: =IF($C30="","",Pipeline!J30) ->  | H30: =IF($C30="","",IFERROR(CHOOSE(MONTH(Pipeline!N30),"jan","fev","mar","abr","mai","jun","jul","ago","set","out","nov","dez")&"/"&TEXT(YEAR(Pipeline!N30)-2000,"00"),"")) -> 
C31: =IF(OR(Pipeline!I31="Fechado Ganho",Pipeline!I31="Fechado Perdido",Pipeline!I31="Cancelado",Pipeline!C31=""),"",Pipeline!C31) ->  | D31: =IF($C31="","",Pipeline!D31) ->  | E31: =IF($C31="","",Pipeline!K31) ->  | F31: =IF($C31="","",Pipeline!J31) ->  | H31: =IF($C31="","",IFERROR(CHOOSE(MONTH(Pipeline!N31),"jan","fev","mar","abr","mai","jun","jul","ago","set","out","nov","dez")&"/"&TEXT(YEAR(Pipeline!N31)-2000,"00"),"")) -> 
C32: =IF(OR(Pipeline!I32="Fechado Ganho",Pipeline!I32="Fechado Perdido",Pipeline!I32="Cancelado",Pipeline!C32=""),"",Pipeline!C32) ->  | D32: =IF($C32="","",Pipeline!D32) ->  | E32: =IF($C32="","",Pipeline!K32) ->  | F32: =IF($C32="","",Pipeline!J32) ->  | H32: =IF($C32="","",IFERROR(CHOOSE(MONTH(Pipeline!N32),"jan","fev","mar","abr","mai","jun","jul","ago","set","out","nov","dez")&"/"&TEXT(YEAR(Pipeline!N32)-2000,"00"),"")) -> 
C33: =IF(OR(Pipeline!I33="Fechado Ganho",Pipeline!I33="Fechado Perdido",Pipeline!I33="Cancelado",Pipeline!C33=""),"",Pipeline!C33) ->  | D33: =IF($C33="","",Pipeline!D33) ->  | E33: =IF($C33="","",Pipeline!K33) ->  | F33: =IF($C33="","",Pipeline!J33) ->  | H33: =IF($C33="","",IFERROR(CHOOSE(MONTH(Pipeline!N33),"jan","fev","mar","abr","mai","jun","jul","ago","set","out","nov","dez")&"/"&TEXT(YEAR(Pipeline!N33)-2000,"00"),"")) -> 
C34: =IF(OR(Pipeline!I34="Fechado Ganho",Pipeline!I34="Fechado Perdido",Pipeline!I34="Cancelado",Pipeline!C34=""),"",Pipeline!C34) ->  | D34: =IF($C34="","",Pipeline!D34) ->  | E34: =IF($C34="","",Pipeline!K34) ->  | F34: =IF($C34="","",Pipeline!J34) ->  | H34: =IF($C34="","",IFERROR(CHOOSE(MONTH(Pipeline!N34),"jan","fev","mar","abr","mai","jun","jul","ago","set","out","nov","dez")&"/"&TEXT(YEAR(Pipeline!N34)-2000,"00"),"")) -> 
C35: =IF(OR(Pipeline!I35="Fechado Ganho",Pipeline!I35="Fechado Perdido",Pipeline!I35="Cancelado",Pipeline!C35=""),"",Pipeline!C35) ->  | D35: =IF($C35="","",Pipeline!D35) ->  | E35: =IF($C35="","",Pipeline!K35) ->  | F35: =IF($C35="","",Pipeline!J35) ->  | H35: =IF($C35="","",IFERROR(CHOOSE(MONTH(Pipeline!N35),"jan","fev","mar","abr","mai","jun","jul","ago","set","out","nov","dez")&"/"&TEXT(YEAR(Pipeline!N35)-2000,"00"),"")) -> 
C36: =IF(OR(Pipeline!I36="Fechado Ganho",Pipeline!I36="Fechado Perdido",Pipeline!I36="Cancelado",Pipeline!C36=""),"",Pipeline!C36) ->  | D36: =IF($C36="","",Pipeline!D36) ->  | E36: =IF($C36="","",Pipeline!K36) ->  | F36: =IF($C36="","",Pipeline!J36) ->  | H36: =IF($C36="","",IFERROR(CHOOSE(MONTH(Pipeline!N36),"jan","fev","mar","abr","mai","jun","jul","ago","set","out","nov","dez")&"/"&TEXT(YEAR(Pipeline!N36)-2000,"00"),"")) -> 
C37: =IF(OR(Pipeline!I37="Fechado Ganho",Pipeline!I37="Fechado Perdido",Pipeline!I37="Cancelado",Pipeline!C37=""),"",Pipeline!C37) ->  | D37: =IF($C37="","",Pipeline!D37) ->  | E37: =IF($C37="","",Pipeline!K37) ->  | F37: =IF($C37="","",Pipeline!J37) ->  | H37: =IF($C37="","",IFERROR(CHOOSE(MONTH(Pipeline!N37),"jan","fev","mar","abr","mai","jun","jul","ago","set","out","nov","dez")&"/"&TEXT(YEAR(Pipeline!N37)-2000,"00"),"")) -> 

Sheet Metas (hidden)
C2: METAS COMERCIAIS
C3: Solução de Gestão de Operações Comerciais
C4: Instruções | D4: Dashboard | E4: Vendedores | F4: Clientes | G4: Produtos | H4: Pipeline | I4: Vendas | J4: Comissões | K4: Forecast | L4: Metas | M4: Agenda
C6: Defina as metas nos campos em azul. As colunas de realizado vêm das Vendas.
C7: Vendedor | D7: Meta Receita | E7: Meta Quantidade | F7: Meta Comissão | G7: Receita Realizada | H7: Qtd. Realizada | I7: Comissão Realizada | J7: % Meta Receita | K7: Falta Atingir | L7: Situação
C8: Ana Ribeiro | D8: R$ 85,000 | E8: 4 | F8: R$ 4,200 | G8: =IFERROR(SUMIF(Vendas!$G$8:$G$32,$C8,Vendas!$J$8:$J$32),0) -> R$ 92,087 | H8: =IFERROR(COUNTIF(Vendas!$G$8:$G$32,$C8),0) -> 4 | I8: =IFERROR(SUMIF(Vendas!$G$8:$G$32,$C8,Vendas!$L$8:$L$32),0) -> R$ 4,500 | J8: =IFERROR(G8/D8,0) -> 108.3% | K8: =MAX(0,D8-G8) -> 0 | L8: =IF(J8>=1,"Meta atingida",IF(J8>=0.7,"Em rota","Abaixo do esperado")) -> Meta atingida
C9: Bruno Carvalho | D9: R$ 95,000 | E9: 5 | F9: R$ 5,500 | G9: =IFERROR(SUMIF(Vendas!$G$8:$G$32,$C9,Vendas!$J$8:$J$32),0) -> R$ 78,692 | H9: =IFERROR(COUNTIF(Vendas!$G$8:$G$32,$C9),0) -> 4 | I9: =IFERROR(SUMIF(Vendas!$G$8:$G$32,$C9,Vendas!$L$8:$L$32),0) -> R$ 6,060 | J9: 82.8% | K9: R$ 16,308 | L9: Em rota
C10: Camila Souza | D10: R$ 105,000 | E10: 4 | F10: R$ 5,000 | G10: =IFERROR(SUMIF(Vendas!$G$8:$G$32,$C10,Vendas!$J$8:$J$32),0) -> R$ 111,355 | H10: =IFERROR(COUNTIF(Vendas!$G$8:$G$32,$C10),0) -> 4 | I10: =IFERROR(SUMIF(Vendas!$G$8:$G$32,$C10,Vendas!$L$8:$L$32),0) -> R$ 5,166 | J10: 106.1% | K10: 0 | L10: Meta atingida
C11: Diego Martins | D11: R$ 60,000 | E11: 3 | F11: R$ 4,000 | G11: =IFERROR(SUMIF(Vendas!$G$8:$G$32,$C11,Vendas!$J$8:$J$32),0) -> R$ 62,329 | H11: =IFERROR(COUNTIF(Vendas!$G$8:$G$32,$C11),0) -> 4 | I11: =IFERROR(SUMIF(Vendas!$G$8:$G$32,$C11,Vendas!$L$8:$L$32),0) -> R$ 4,449 | J11: 103.9% | K11: 0 | L11: Meta atingida
C12: Elisa Nogueira | D12: R$ 70,000 | E12: 3 | F12: R$ 4,000 | G12: =IFERROR(SUMIF(Vendas!$G$8:$G$32,$C12,Vendas!$J$8:$J$32),0) -> R$ 72,534 | H12: =IFERROR(COUNTIF(Vendas!$G$8:$G$32,$C12),0) -> 3 | I12: =IFERROR(SUMIF(Vendas!$G$8:$G$32,$C12,Vendas!$L$8:$L$32),0) -> R$ 4,184 | J12: 103.6% | K12: 0 | L12: Meta atingida
C13: Fábio Lima | D13: R$ 80,000 | E13: 4 | F13: R$ 4,500 | G13: =IFERROR(SUMIF(Vendas!$G$8:$G$32,$C13,Vendas!$J$8:$J$32),0) -> R$ 44,370 | H13: =IFERROR(COUNTIF(Vendas!$G$8:$G$32,$C13),0) -> 3 | I13: =IFERROR(SUMIF(Vendas!$G$8:$G$32,$C13,Vendas!$L$8:$L$32),0) -> R$ 2,057 | J13: 55.5% | K13: R$ 35,630 | L13: Abaixo do esperado
C14: Gabriela Pinto | D14: R$ 85,000 | E14: 4 | F14: R$ 4,800 | G14: =IFERROR(SUMIF(Vendas!$G$8:$G$32,$C14,Vendas!$J$8:$J$32),0) -> R$ 59,395 | H14: =IFERROR(COUNTIF(Vendas!$G$8:$G$32,$C14),0) -> 3 | I14: =IFERROR(SUMIF(Vendas!$G$8:$G$32,$C14,Vendas!$L$8:$L$32),0) -> R$ 4,375 | J14: 69.9% | K14: R$ 25,605 | L14: Abaixo do esperado

Sheet Agenda (hidden)
C2: AGENDA COMERCIAL
C3: Solução de Gestão de Operações Comerciais
C4: Instruções | D4: Dashboard | E4: Vendedores | F4: Clientes | G4: Produtos | H4: Pipeline | I4: Vendas | J4: Comissões | K4: Forecast | L4: Metas | M4: Agenda
C6: Programe as atividades. Linhas em vermelho estão com data vencida e pendentes.
C7: Data | D7: Cliente | E7: Responsável | F7: Atividade | G7: Prioridade | H7: Status | I7: Observações
C8: 2026-07-20 | D8: Alfa Indústria Ltda | E8: Ana Ribeiro | F8: Ligação | G8: Alta | H8: Pendente | I8: Confirmar disponibilidade
C9: 2026-07-22 | D9: Beta Comércio SA | E9: Bruno Carvalho | F9: Visita | G9: Média | H9: Em andamento | I9: Levar apresentação comercial
C10: 2026-07-24 | D10: Gamma Tech | E10: Camila Souza | F10: Follow-up | G10: Baixa | H10: Concluída | I10: Retomar após feriado
C11: 2026-07-26 | D11: Delta Saúde | E11: Diego Martins | F11: Reunião | G11: Alta | H11: Cancelada | I11: Alinhar escopo técnico
C12: 2026-07-28 | D12: Epsilon Educação | E12: Elisa Nogueira | F12: Envio proposta | G12: Média | H12: Pendente | I12: Enviar versão revisada
C13: 2026-07-30 | D13: Zeta Agro | E13: Fábio Lima | F13: Renovação | G13: Baixa | H13: Em andamento | I13: Checar renovação de contrato
C14: 2026-08-01 | D14: Eta Serviços | E14: Gabriela Pinto | F14: Ligação | G14: Alta | H14: Concluída
C15: 2026-08-03 | D15: Theta Financeira | E15: Ana Ribeiro | F15: Visita | G15: Média | H15: Cancelada | I15: Confirmar disponibilidade
C16: 2026-08-05 | D16: Iota Distribuidora | E16: Bruno Carvalho | F16: Follow-up | G16: Baixa | H16: Pendente | I16: Levar apresentação comercial
C17: 2026-08-07 | D17: Kappa Logística | E17: Camila Souza | F17: Reunião | G17: Alta | H17: Em andamento | I17: Retomar após feriado
C18: 2026-07-20 | D18: Lambda Metais | E18: Diego Martins | F18: Envio proposta | G18: Média | H18: Concluída | I18: Alinhar escopo técnico
C19: 2026-07-22 | D19: Alfa Indústria Ltda | E19: Elisa Nogueira | F19: Renovação | G19: Baixa | H19: Cancelada | I19: Enviar versão revisada
C20: 2026-07-24 | D20: Beta Comércio SA | E20: Fábio Lima | F20: Ligação | G20: Alta | H20: Pendente | I20: Checar renovação de contrato
C21: 2026-07-26 | D21: Gamma Tech | E21: Gabriela Pinto | F21: Visita | G21: Média | H21: Em andamento
C22: 2026-07-28 | D22: Delta Saúde | E22: Ana Ribeiro | F22: Follow-up | G22: Baixa | H22: Concluída | I22: Confirmar disponibilidade
C23: 2026-07-30 | D23: Epsilon Educação | E23: Bruno Carvalho | F23: Reunião | G23: Alta | H23: Cancelada | I23: Levar apresentação comercial
C24: 2026-08-01 | D24: Zeta Agro | E24: Camila Souza | F24: Envio proposta | G24: Média | H24: Pendente | I24: Retomar após feriado
C25: 2026-08-03 | D25: Eta Serviços | E25: Diego Martins | F25: Renovação | G25: Baixa | H25: Em andamento | I25: Alinhar escopo técnico
C26: 2026-08-05 | D26: Theta Financeira | E26: Elisa Nogueira | F26: Ligação | G26: Alta | H26: Concluída | I26: Enviar versão revisada
C27: 2026-08-07 | D27: Iota Distribuidora | E27: Fábio Lima | F27: Visita | G27: Média | H27: Cancelada | I27: Checar renovação de contrato

Sheet Base de Cálculos (hidden)
C2: BASE DE CÁLCULOS (AUXILIAR)
C3: Solução de Gestão de Operações Comerciais
C4: Instruções | D4: Dashboard | E4: Vendedores | F4: Clientes | G4: Produtos | H4: Pipeline | I4: Vendas | J4: Comissões | K4: Forecast | L4: Metas | M4: Agenda
C6: Aba auxiliar — concentra listas de validação e todas as agregações. Não editar manualmente.
C8: Equipes | D8: SimNao | E8: Segmentos | F8: Origens | G8: Estagios | H8: Categorias | I8: Prioridades | J8: Atividades | K8: StatusAtiv | L8: StatusComissao | M8: FormasPagto | N8: StatusCadastro
C9: Equipe A | D9: Sim | E9: Indústria | F9: Indicação | G9: Lead | H9: Produto | I9: Alta | J9: Ligação | K9: Pendente | L9: Pendente | M9: Boleto | N9: Ativo
C10: Equipe B | D10: Não | E10: Comércio | F10: Site | G10: Contato | H10: Serviço | I10: Média | J10: Visita | K10: Em andamento | L10: Pago | M10: PIX | N10: Inativo
C11: Equipe C | E11: Serviços | F11: Inbound | G11: Diagnóstico | H11: Plano | I11: Baixa | J11: Follow-up | K11: Concluída | L11: Cancelado | M11: Cartão
C12: Inside Sales | E12: Tecnologia | F12: Outbound | G12: Proposta | H12: Assinatura | J12: Reunião | K12: Cancelada | M12: Transferência
C13: Key Accounts | E13: Saúde | F13: Evento | G13: Negociação | H13: Consultoria | J13: Envio proposta | M13: Parcelado
E14: Educação | F14: Redes Sociais | G14: Fechado Ganho | J14: Renovação
E15: Agronegócio | F15: Parceiro | G15: Fechado Perdido
E16: Financeiro | F16: Base Ativa | G16: Cancelado
C20: 1. RECEITA POR MÊS (base gráfico) | H20: 6. BASES CONTÍGUAS PARA GRÁFICOS
B21: Mês# | C21: Mês | D21: Receita Realizada | E21: Forecast Ponderado | H21: Vendedor | I21: Comissão | K21: Mês | L21: Forecast Ponderado
B22: 1 | C22: jan/26 | D22: =IFERROR(SUMPRODUCT((MONTH(Vendas!$D$8:$D$32)=$B22)*(YEAR(Vendas!$D$8:$D$32)=2026)*Vendas!$J$8:$J$32),0) -> R$ 45,216 | E22: =IFERROR(SUMPRODUCT((MONTH(Pipeline!$N$8:$N$37)=$B22)*(YEAR(Pipeline!$N$8:$N$37)=2026)*Pipeline!$L$8:$L$37),0) -> 0 | H22: =$C$37 -> Ana Ribeiro | I22: =$E$37 -> R$ 4,500 | K22: =$C$22 -> jan/26 | L22: =$E$22 -> 0
B23: 2 | C23: fev/26 | D23: =IFERROR(SUMPRODUCT((MONTH(Vendas!$D$8:$D$32)=$B23)*(YEAR(Vendas!$D$8:$D$32)=2026)*Vendas!$J$8:$J$32),0) -> R$ 44,029 | E23: =IFERROR(SUMPRODUCT((MONTH(Pipeline!$N$8:$N$37)=$B23)*(YEAR(Pipeline!$N$8:$N$37)=2026)*Pipeline!$L$8:$L$37),0) -> 0 | H23: =$C$38 -> Bruno Carvalho | I23: =$E$38 -> R$ 6,060 | K23: =$C$23 -> fev/26 | L23: =$E$23 -> 0
B24: 3 | C24: mar/26 | D24: =IFERROR(SUMPRODUCT((MONTH(Vendas!$D$8:$D$32)=$B24)*(YEAR(Vendas!$D$8:$D$32)=2026)*Vendas!$J$8:$J$32),0) -> R$ 75,415 | E24: =IFERROR(SUMPRODUCT((MONTH(Pipeline!$N$8:$N$37)=$B24)*(YEAR(Pipeline!$N$8:$N$37)=2026)*Pipeline!$L$8:$L$37),0) -> 0 | H24: =$C$39 -> Camila Souza | I24: =$E$39 -> R$ 5,166 | K24: =$C$24 -> mar/26 | L24: =$E$24 -> 0
B25: 4 | C25: abr/26 | D25: =IFERROR(SUMPRODUCT((MONTH(Vendas!$D$8:$D$32)=$B25)*(YEAR(Vendas!$D$8:$D$32)=2026)*Vendas!$J$8:$J$32),0) -> R$ 82,376 | E25: =IFERROR(SUMPRODUCT((MONTH(Pipeline!$N$8:$N$37)=$B25)*(YEAR(Pipeline!$N$8:$N$37)=2026)*Pipeline!$L$8:$L$37),0) -> 0 | H25: =$C$40 -> Diego Martins | I25: =$E$40 -> R$ 4,449 | K25: =$C$25 -> abr/26 | L25: =$E$25 -> 0
B26: 5 | C26: mai/26 | D26: =IFERROR(SUMPRODUCT((MONTH(Vendas!$D$8:$D$32)=$B26)*(YEAR(Vendas!$D$8:$D$32)=2026)*Vendas!$J$8:$J$32),0) -> R$ 53,096 | E26: =IFERROR(SUMPRODUCT((MONTH(Pipeline!$N$8:$N$37)=$B26)*(YEAR(Pipeline!$N$8:$N$37)=2026)*Pipeline!$L$8:$L$37),0) -> 0 | H26: =$C$41 -> Elisa Nogueira | I26: =$E$41 -> R$ 4,184 | K26: =$C$26 -> mai/26 | L26: =$E$26 -> 0
B27: 6 | C27: jun/26 | D27: =IFERROR(SUMPRODUCT((MONTH(Vendas!$D$8:$D$32)=$B27)*(YEAR(Vendas!$D$8:$D$32)=2026)*Vendas!$J$8:$J$32),0) -> R$ 112,497 | E27: =IFERROR(SUMPRODUCT((MONTH(Pipeline!$N$8:$N$37)=$B27)*(YEAR(Pipeline!$N$8:$N$37)=2026)*Pipeline!$L$8:$L$37),0) -> 0 | H27: =$C$42 -> Fábio Lima | I27: =$E$42 -> R$ 2,057 | K27: =$C$27 -> jun/26 | L27: =$E$27 -> 0
B28: 7 | C28: jul/26 | D28: =IFERROR(SUMPRODUCT((MONTH(Vendas!$D$8:$D$32)=$B28)*(YEAR(Vendas!$D$8:$D$32)=2026)*Vendas!$J$8:$J$32),0) -> R$ 108,133 | E28: =IFERROR(SUMPRODUCT((MONTH(Pipeline!$N$8:$N$37)=$B28)*(YEAR(Pipeline!$N$8:$N$37)=2026)*Pipeline!$L$8:$L$37),0) -> 0 | H28: =$C$43 -> Gabriela Pinto | I28: =$E$43 -> R$ 4,375 | K28: =$C$28 -> jul/26 | L28: =$E$28 -> 0
B29: 8 | C29: ago/26 | D29: =IFERROR(SUMPRODUCT((MONTH(Vendas!$D$8:$D$32)=$B29)*(YEAR(Vendas!$D$8:$D$32)=2026)*Vendas!$J$8:$J$32),0) -> 0 | E29: =IFERROR(SUMPRODUCT((MONTH(Pipeline!$N$8:$N$37)=$B29)*(YEAR(Pipeline!$N$8:$N$37)=2026)*Pipeline!$L$8:$L$37),0) -> R$ 67,620 | K29: =$C$29 -> ago/26 | L29: =$E$29 -> R$ 67,620
B30: 9 | C30: set/26 | D30: =IFERROR(SUMPRODUCT((MONTH(Vendas!$D$8:$D$32)=$B30)*(YEAR(Vendas!$D$8:$D$32)=2026)*Vendas!$J$8:$J$32),0) -> 0 | E30: =IFERROR(SUMPRODUCT((MONTH(Pipeline!$N$8:$N$37)=$B30)*(YEAR(Pipeline!$N$8:$N$37)=2026)*Pipeline!$L$8:$L$37),0) -> R$ 77,088 | K30: =$C$30 -> set/26 | L30: =$E$30 -> R$ 77,088
B31: 10 | C31: out/26 | D31: =IFERROR(SUMPRODUCT((MONTH(Vendas!$D$8:$D$32)=$B31)*(YEAR(Vendas!$D$8:$D$32)=2026)*Vendas!$J$8:$J$32),0) -> 0 | E31: =IFERROR(SUMPRODUCT((MONTH(Pipeline!$N$8:$N$37)=$B31)*(YEAR(Pipeline!$N$8:$N$37)=2026)*Pipeline!$L$8:$L$37),0) -> R$ 31,276 | K31: =$C$31 -> out/26 | L31: =$E$31 -> R$ 31,276
B32: 11 | C32: nov/26 | D32: =IFERROR(SUMPRODUCT((MONTH(Vendas!$D$8:$D$32)=$B32)*(YEAR(Vendas!$D$8:$D$32)=2026)*Vendas!$J$8:$J$32),0) -> 0 | E32: =IFERROR(SUMPRODUCT((MONTH(Pipeline!$N$8:$N$37)=$B32)*(YEAR(Pipeline!$N$8:$N$37)=2026)*Pipeline!$L$8:$L$37),0) -> R$ 32,496 | K32: =$C$32 -> nov/26 | L32: =$E$32 -> R$ 32,496
B33: 12 | C33: dez/26 | D33: =IFERROR(SUMPRODUCT((MONTH(Vendas!$D$8:$D$32)=$B33)*(YEAR(Vendas!$D$8:$D$32)=2026)*Vendas!$J$8:$J$32),0) -> 0 | E33: =IFERROR(SUMPRODUCT((MONTH(Pipeline!$N$8:$N$37)=$B33)*(YEAR(Pipeline!$N$8:$N$37)=2026)*Pipeline!$L$8:$L$37),0) -> R$ 6,048 | K33: =$C$33 -> dez/26 | L33: =$E$33 -> R$ 6,048
C35: 2. RECEITA E COMISSÃO POR VENDEDOR
C36: Vendedor | D36: Receita | E36: Comissão | F36: Qtd. Vendas
C37: =IFERROR(Vendedores!$D$8,"") -> Ana Ribeiro | D37: =IFERROR(SUMIF(Vendas!$G$8:$G$32,$C37,Vendas!$J$8:$J$32),0) -> R$ 92,087 | E37: =IFERROR(SUMIF(Vendas!$G$8:$G$32,$C37,Vendas!$L$8:$L$32),0) -> R$ 4,500 | F37: =IFERROR(COUNTIF(Vendas!$G$8:$G$32,$C37),0) -> 4
C38: =IFERROR(Vendedores!$D$9,"") -> Bruno Carvalho | D38: =IFERROR(SUMIF(Vendas!$G$8:$G$32,$C38,Vendas!$J$8:$J$32),0) -> R$ 78,692 | E38: =IFERROR(SUMIF(Vendas!$G$8:$G$32,$C38,Vendas!$L$8:$L$32),0) -> R$ 6,060 | F38: =IFERROR(COUNTIF(Vendas!$G$8:$G$32,$C38),0) -> 4
C39: =IFERROR(Vendedores!$D$10,"") -> Camila Souza | D39: =IFERROR(SUMIF(Vendas!$G$8:$G$32,$C39,Vendas!$J$8:$J$32),0) -> R$ 111,355 | E39: =IFERROR(SUMIF(Vendas!$G$8:$G$32,$C39,Vendas!$L$8:$L$32),0) -> R$ 5,166 | F39: =IFERROR(COUNTIF(Vendas!$G$8:$G$32,$C39),0) -> 4
C40: =IFERROR(Vendedores!$D$11,"") -> Diego Martins | D40: =IFERROR(SUMIF(Vendas!$G$8:$G$32,$C40,Vendas!$J$8:$J$32),0) -> R$ 62,329 | E40: =IFERROR(SUMIF(Vendas!$G$8:$G$32,$C40,Vendas!$L$8:$L$32),0) -> R$ 4,449 | F40: =IFERROR(COUNTIF(Vendas!$G$8:$G$32,$C40),0) -> 4
C41: =IFERROR(Vendedores!$D$12,"") -> Elisa Nogueira | D41: =IFERROR(SUMIF(Vendas!$G$8:$G$32,$C41,Vendas!$J$8:$J$32),0) -> R$ 72,534 | E41: =IFERROR(SUMIF(Vendas!$G$8:$G$32,$C41,Vendas!$L$8:$L$32),0) -> R$ 4,184 | F41: =IFERROR(COUNTIF(Vendas!$G$8:$G$32,$C41),0) -> 3
C42: =IFERROR(Vendedores!$D$13,"") -> Fábio Lima | D42: =IFERROR(SUMIF(Vendas!$G$8:$G$32,$C42,Vendas!$J$8:$J$32),0) -> R$ 44,370 | E42: =IFERROR(SUMIF(Vendas!$G$8:$G$32,$C42,Vendas!$L$8:$L$32),0) -> R$ 2,057 | F42: =IFERROR(COUNTIF(Vendas!$G$8:$G$32,$C42),0) -> 3
C43: =IFERROR(Vendedores!$D$14,"") -> Gabriela Pinto | D43: =IFERROR(SUMIF(Vendas!$G$8:$G$32,$C43,Vendas!$J$8:$J$32),0) -> R$ 59,395 | E43: =IFERROR(SUMIF(Vendas!$G$8:$G$32,$C43,Vendas!$L$8:$L$32),0) -> R$ 4,375 | F43: =IFERROR(COUNTIF(Vendas!$G$8:$G$32,$C43),0) -> 3
C46: 3. RECEITA POR PRODUTO
C47: Produto | D47: Receita | E47: Qtd. Vendas
C48: =IFERROR(Produtos!$D$8,"") -> Licença ERP Corporate | D48: =IFERROR(SUMIF(Vendas!$F$8:$F$32,$C48,Vendas!$J$8:$J$32),0) -> R$ 130,440 | E48: =IFERROR(COUNTIF(Vendas!$F$8:$F$32,$C48),0) -> 3
C49: =IFERROR(Produtos!$D$9,"") -> Licença ERP Starter | D49: =IFERROR(SUMIF(Vendas!$F$8:$F$32,$C49,Vendas!$J$8:$J$32),0) -> R$ 35,741 | E49: =IFERROR(COUNTIF(Vendas!$F$8:$F$32,$C49),0) -> 2
C50: =IFERROR(Produtos!$D$10,"") -> Implantação Técnica | D50: =IFERROR(SUMIF(Vendas!$F$8:$F$32,$C50,Vendas!$J$8:$J$32),0) -> R$ 84,630 | E50: =IFERROR(COUNTIF(Vendas!$F$8:$F$32,$C50),0) -> 3
C51: =IFERROR(Produtos!$D$11,"") -> Plano Suporte Premium | D51: =IFERROR(SUMIF(Vendas!$F$8:$F$32,$C51,Vendas!$J$8:$J$32),0) -> R$ 35,130 | E51: =IFERROR(COUNTIF(Vendas!$F$8:$F$32,$C51),0) -> 3
C52: =IFERROR(Produtos!$D$12,"") -> Plano Suporte Básico | D52: =IFERROR(SUMIF(Vendas!$F$8:$F$32,$C52,Vendas!$J$8:$J$32),0) -> R$ 14,256 | E52: =IFERROR(COUNTIF(Vendas!$F$8:$F$32,$C52),0) -> 3
C53: =IFERROR(Produtos!$D$13,"") -> Assinatura BI Analytics | D53: =IFERROR(SUMIF(Vendas!$F$8:$F$32,$C53,Vendas!$J$8:$J$32),0) -> R$ 32,081 | E53: =IFERROR(COUNTIF(Vendas!$F$8:$F$32,$C53),0) -> 2
C54: =IFERROR(Produtos!$D$14,"") -> Consultoria Estratégica | D54: =IFERROR(SUMIF(Vendas!$F$8:$F$32,$C54,Vendas!$J$8:$J$32),0) -> R$ 92,512 | E54: =IFERROR(COUNTIF(Vendas!$F$8:$F$32,$C54),0) -> 3
C55: =IFERROR(Produtos!$D$15,"") -> Consultoria Processos | D55: =IFERROR(SUMIF(Vendas!$F$8:$F$32,$C55,Vendas!$J$8:$J$32),0) -> R$ 66,231 | E55: =IFERROR(COUNTIF(Vendas!$F$8:$F$32,$C55),0) -> 3
C56: =IFERROR(Produtos!$D$16,"") -> Treinamento Equipe | D56: =IFERROR(SUMIF(Vendas!$F$8:$F$32,$C56,Vendas!$J$8:$J$32),0) -> R$ 29,740 | E56: =IFERROR(COUNTIF(Vendas!$F$8:$F$32,$C56),0) -> 3
C57: =IFERROR(Produtos!$D$17,"") -> Módulo Fiscal Adicional | D57: =IFERROR(SUMIF(Vendas!$F$8:$F$32,$C57,Vendas!$J$8:$J$32),0) -> 0 | E57: =IFERROR(COUNTIF(Vendas!$F$8:$F$32,$C57),0) -> 0
C59: 4. FUNIL COMERCIAL POR ESTÁGIO
C60: Estágio | D60: Qtd. Oportunidades | E60: Valor | F60: Valor Ponderado
C61: =IFERROR($G$9,"") -> Lead | D61: =IFERROR(COUNTIF(Pipeline!$I$8:$I$37,$C61),0) -> 4 | E61: =IFERROR(SUMIF(Pipeline!$I$8:$I$37,$C61,Pipeline!$K$8:$K$37),0) -> R$ 132,480 | F61: =IFERROR(SUMIF(Pipeline!$I$8:$I$37,$C61,Pipeline!$L$8:$L$37),0) -> R$ 13,248
C62: =IFERROR($G$10,"") -> Contato | D62: =IFERROR(COUNTIF(Pipeline!$I$8:$I$37,$C62),0) -> 4 | E62: =IFERROR(SUMIF(Pipeline!$I$8:$I$37,$C62,Pipeline!$K$8:$K$37),0) -> R$ 126,480 | F62: =IFERROR(SUMIF(Pipeline!$I$8:$I$37,$C62,Pipeline!$L$8:$L$37),0) -> R$ 25,296
C63: =IFERROR($G$11,"") -> Diagnóstico | D63: =IFERROR(COUNTIF(Pipeline!$I$8:$I$37,$C63),0) -> 3 | E63: =IFERROR(SUMIF(Pipeline!$I$8:$I$37,$C63,Pipeline!$K$8:$K$37),0) -> R$ 89,360 | F63: =IFERROR(SUMIF(Pipeline!$I$8:$I$37,$C63,Pipeline!$L$8:$L$37),0) -> R$ 31,276
C64: =IFERROR($G$12,"") -> Proposta | D64: =IFERROR(COUNTIF(Pipeline!$I$8:$I$37,$C64),0) -> 4 | E64: =IFERROR(SUMIF(Pipeline!$I$8:$I$37,$C64,Pipeline!$K$8:$K$37),0) -> R$ 140,160 | F64: =IFERROR(SUMIF(Pipeline!$I$8:$I$37,$C64,Pipeline!$L$8:$L$37),0) -> R$ 77,088
C65: =IFERROR($G$13,"") -> Negociação | D65: =IFERROR(COUNTIF(Pipeline!$I$8:$I$37,$C65),0) -> 3 | E65: =IFERROR(SUMIF(Pipeline!$I$8:$I$37,$C65,Pipeline!$K$8:$K$37),0) -> R$ 90,160 | F65: =IFERROR(SUMIF(Pipeline!$I$8:$I$37,$C65,Pipeline!$L$8:$L$37),0) -> R$ 67,620
C66: =IFERROR($G$14,"") -> Fechado Ganho | D66: =IFERROR(COUNTIF(Pipeline!$I$8:$I$37,$C66),0) -> 8 | E66: =IFERROR(SUMIF(Pipeline!$I$8:$I$37,$C66,Pipeline!$K$8:$K$37),0) -> R$ 258,880 | F66: =IFERROR(SUMIF(Pipeline!$I$8:$I$37,$C66,Pipeline!$L$8:$L$37),0) -> R$ 258,880
C67: =IFERROR($G$15,"") -> Fechado Perdido | D67: =IFERROR(COUNTIF(Pipeline!$I$8:$I$37,$C67),0) -> 3 | E67: =IFERROR(SUMIF(Pipeline!$I$8:$I$37,$C67,Pipeline!$K$8:$K$37),0) -> R$ 113,040 | F67: =IFERROR(SUMIF(Pipeline!$I$8:$I$37,$C67,Pipeline!$L$8:$L$37),0) -> 0
C68: =IFERROR($G$16,"") -> Cancelado | D68: =IFERROR(COUNTIF(Pipeline!$I$8:$I$37,$C68),0) -> 1 | E68: =IFERROR(SUMIF(Pipeline!$I$8:$I$37,$C68,Pipeline!$K$8:$K$37),0) -> R$ 30,800 | F68: =IFERROR(SUMIF(Pipeline!$I$8:$I$37,$C68,Pipeline!$L$8:$L$37),0) -> 0
B69: Total Vendido (líquido) | C69: =IFERROR(SUM(Vendas!$J$8:$J$32),0) -> R$ 520,761
B70: Total em Negociação | C70: =IFERROR(SUMIFS(Pipeline!$K$8:$K$37,Pipeline!$Q$8:$Q$37,"Em aberto"),0) -> R$ 578,640
B71: Receita Prevista (pipeline bruto) | C71: =IFERROR(SUMIFS(Pipeline!$K$8:$K$37,Pipeline!$Q$8:$Q$37,"Em aberto"),0) -> R$ 578,640
B72: Receita Ponderada | C72: =IFERROR(SUMIFS(Pipeline!$L$8:$L$37,Pipeline!$Q$8:$Q$37,"Em aberto"),0) -> R$ 214,528
B73: Ticket Médio | C73: =IFERROR(AVERAGE(Vendas!$J$8:$J$32),0) -> R$ 20,830
B74: Qtd. Oportunidades | C74: =IFERROR(COUNTIF(Pipeline!$C$8:$C$37,"OP*"),0) -> 30
B75: Oportunidades Ganhas | C75: =IFERROR(COUNTIF(Pipeline!$I$8:$I$37,"Fechado Ganho"),0) -> 8
B76: Oportunidades Perdidas | C76: =IFERROR(COUNTIF(Pipeline!$I$8:$I$37,"Fechado Perdido"),0) -> 3
B77: Taxa de Conversão | C77: =IFERROR(C75/(C75+C76),0) -> 72.7%
B78: Valor Ganho | C78: =IFERROR(SUMIF(Pipeline!$I$8:$I$37,"Fechado Ganho",Pipeline!$K$8:$K$37),0) -> R$ 258,880
B79: Valor Perdido | C79: =IFERROR(SUMIF(Pipeline!$I$8:$I$37,"Fechado Perdido",Pipeline!$K$8:$K$37),0) -> R$ 113,040
B80: Comissão Total | C80: =IFERROR(SUM(Vendas!$L$8:$L$32),0) -> R$ 30,792
B81: Comissão Paga | C81: =IFERROR(SUMIF(Vendas!$M$8:$M$32,"Sim",Vendas!$L$8:$L$32),0) -> R$ 24,373
B82: Comissão Pendente | C82: =IFERROR(SUMIF(Vendas!$M$8:$M$32,"Não",Vendas!$L$8:$L$32),0) -> R$ 6,419
B83: Tempo Médio até Fechamento (dias) | C83: =IFERROR(ROUND(AVERAGEIF(Pipeline!$I$8:$I$37,"Fechado Ganho",Pipeline!$O$8:$O$37)-AVERAGEIF(Pipeline!$I$8:$I$37,"Fechado Ganho",Pipeline!$H$8:$H$37),0),0) -> 43
B84: Vendedor Destaque | C84: =IFERROR(INDEX($C$37:$C$43,MATCH(MAX($D$37:$D$43),$D$37:$D$43,0)),"") -> Camila Souza
B85: Receita do Destaque | C85: =IFERROR(MAX($D$37:$D$43),0) -> R$ 111,355
B86: Produto Mais Vendido | C86: =IFERROR(INDEX($C$48:$C$57,MATCH(MAX($D$48:$D$57),$D$48:$D$57,0)),"") -> Licença ERP Corporate
B87: Receita do Produto Top | C87: =IFERROR(MAX($D$48:$D$57),0) -> R$ 130,440
B88: Clientes Ativos | C88: =IFERROR(COUNTIF(Clientes!$L$8:$L$19,"Sim"),0) -> 11
B89: Total de Clientes | C89: =IFERROR(COUNTIF(Clientes!$C$8:$C$19,"C*"),0) -> 12
B90: Pipeline Parado (>15 dias) | C90: =IFERROR(COUNTIFS(Pipeline!$P$8:$P$37,">15",Pipeline!$Q$8:$Q$37,"Em aberto"),0) -> 18
